Workbook

Sheet Pasture Maintenance
A2: 2024 | H2: PUBLICATION 446-047
D3: Pasture Maintenance
B4: 1 | C4: Year Average Cost per Acre | H4: Acres
H5: 1
E6: QUANTITY | F6: PRICE OR | H6: YOUR
D7: UNIT | E7: PER ACRE | F7: COST/UNIT | G7: TOTAL | H7: FARM
A9: 1. GROSS RECEIPTS
B10: IMPROVED PASTURE | C10: 300 | D10: Grazing Days | E10: =B4*C10 -> 300 | F10: 0.5 | G10: =ROUND((E10*F10),2) -> 150 | H10: =IF($H$5=1," ",IF(E10=0," ",$H$5*G10)) -> 
B12: TOTAL RECEIPTS: | G12: =SUM(G10:G11) -> 150 | H12: =IF(G12=0," ",IF($H$5=1," ",$H$5*G12)) -> 
A14: 2. PRE-HARVEST VARIABLE COSTS | J14: Codes
B15: Prorated Establishment Cost | C15: 50 | D15: YRS -ACRE | E15: =IF($E$53=1,1,1) -> 1 | F15: 400 | G15: =(F15/C15)^(1+F35) -> 8.6938789 | H15: =IF($H$5=1," ",IF(E15=0," ",$H$5*G15)) -> 
B16: =IF($J16=0," ",VLOOKUP($J16,Seeds,2)) -> SEED: CLOVER - Ladino | D16: =IF($J16=0," ",VLOOKUP($J16,Seeds,4)) -> LBS | E16: 4 | F16: =IF(J16=0," ",VLOOKUP(J16,Seeds,8)) -> 3.85 | G16: =IF(J16=0," ",ROUND((E16*F16),2)) -> 15.4 | H16: =IF($H$5=1," ",IF(E16=0," ",$H$5*G16)) ->  | J16: 114
B17: FERTILIZER* | C17: Soil Test Recommendation | F17: =IF(J17=0," ",VLOOKUP(J17,Seeds,8)) ->  | H17: Fertilizer&Seed:
B18: NITROGEN | D18: LBS | E18: 0 | F18: 0.52 | G18: =IF(C18=0,ROUND((E18*F18),2),ROUND((C18*F18),2)) -> 0 | H18: =SUM(G15:G22) -> 55.4238789 | J18: 504
B19: PHOSPHATE | C19: 0 | D19: LBS | E19: 20 | F19: 0.62 | G19: =IF(C19=0,ROUND((E19*F19),2),ROUND((C19*F19),2)) -> 12.4 | H19: =IF($H$5=1," ",IF(E19=0," ",$H$5*G19)) ->  | J19: 514
B20: POTASH | D20: LBS | E20: 15 | F20: 0.42 | G20: =IF(C20=0,ROUND((E20*F20),2),ROUND((C20*F20),2)) -> 6.3 | J20: 512
B21: =IF($J21=0," ",VLOOKUP($J21,Seeds,2)) -> Poultry Litter | D21: TON | E21: 0 | F21: 35 | G21: =IF(J21=0," ",ROUND((E21*F21),2)) -> 0 | J21: 755
B22: LIME (PRORATED) | D22: =VLOOKUP(J22,Seeds,4) -> TON | E22: 0.25 | F22: 50.5 | G22: =IF(J22=0," ",ROUND((E22*F22),2)) -> 12.63 | H22: Herbicides: | J22: 518
B23: HERBICIDES | D23: ACRE | E23: =IF($E$53=1,1,1) -> 1 | F23: =L106 -> 5.84 | G23: =ROUND((E23*F23),2) -> 5.84 | H23: =G23 -> 5.84
B24: INSECTICIDES | D24: ACRE | E24: =IF($E$53=1,1,1) -> 1 | F24: =M106 -> 0 | G24: =ROUND((E24*F24),2) -> 0
B25: FUNGICIDES | D25: ACRE | E25: =IF($E$53=1,1,1) -> 1 | F25: =N106 -> 0 | G25: =ROUND((E25*F25),2) -> 0
B26: CHEMICAL APPLICATION | D26: ACRE | E26: 0 | F26: =IF(J26=0," ",VLOOKUP(J26,Chem_P,8)) -> 0 | G26: =ROUND((E26*F26),2) -> 0 | H26: Mowing & Spraying Fixed&Variable Costs, not labor: | J26: 999
B27: FUEL,OIL, LUBE | D27: Eq Gallons | E27: =F83/F$90 -> 4.55 | F27: =F$90 -> 2.4 | G27: =ROUND((E27*F27),2) -> 10.92 | H27: =G27+G28+G59 -> 26.41
B28: REPAIRS | D28: ACRE | E28: =IF($E$53=1,1,1) -> 1 | F28: =G83 -> 6.1 | G28: =ROUND((E28*F28),2) -> 6.1 | H28: Labor
B29: PRE-HARVEST LABOR | D29: HRS | E29: =D83 -> 1.29 | F29: 0 | G29: 0 | H29: =G29 -> 0
B30: CASH RENT OR LAND CHARGE | D30: ACRE | E30: =IF($E$53=1,1,1) -> 1 | F30: 0 | G30: 0
B31: CROP INSURANCE | D31: ACRE | E31: =IF($E$53=1,1,1) -> 1 | F31: =Rates!G37 -> 6.41 | G31: 6.41
B32: Fence Maintenance | D32: ACRE | E32: =IF($E$53=1,1,1) -> 1 | F32: 0 | G32: 0
B33: OTHER COSTS | D33: ACRE | E33: =IF($E$53=1,1,1) -> 1 | F33: 0 | G33: 0
B35: Production Interest | C35: 6 | D35: MONTHS | E35: =ROUND(SUM(G15:G34)*$C$35/12,2) -> 42.35 | F35: 0.04 | G35: =ROUND((E35*F35),2) -> 1.69
B37: TOTAL PRE-HARVEST COSTS | E37: =G37/E10 -> 0.287946263 | F37: PER DAY | G37: =SUM(G14:G35) -> 86.3838789 | H37: =IF(G37=0," ",IF($H$5=1," ",$H$5*G37)) -> 
E38: =G37/B4 -> 86.3838789 | F38: PER YEAR
A40: 3. HARVEST VARIABLE COSTS
B41: FUEL,OIL, LUBE | D41: Eq Gallons | E41: =F88/F$90 -> 0 | F41: =F$90 -> 2.4 | G41: =ROUND((E41*F41),2) -> 0 | H41: =IF($H$5=1," ",IF(E41=0," ",$H$5*G41)) -> 
B42: REPAIRS | D42: ACRE | E42: =IF($E$53=1,1,1) -> 1 | F42: =G88 -> 0 | G42: 0
B43: HARVEST LABOR | D43: HRS | E43: =D88 -> 0 | F43: =Rates!$E$11 -> 16 | G43: 0
B44: HAULING | D44: Grazing Days | E44: =E10 -> 300 | G44: 0
B45: STORAGE | D45: Grazing Days | E45: =E10 -> 300 | G45: 0
B46: DRYING | D46: Grazing Days | E46: =E10 -> 300 | G46: 0
B48: TOTAL HARVEST COSTS: | G48: =SUM(G40:G47) -> 0 | H48: =IF(G48=0," ",IF($H$5=1," ",$H$5*G48)) -> 
C49: Breakeven Yield | E49: Breakeven Price
A50: 4. TOTAL VARIABLE COSTS | C50: =IF(F10<=0," ",G50/$F$10) -> 172.7677578 | D50: Days | E50: =G50/$E$10 -> 0.287946263 | F50: Per Day | G50: =G37+G48 -> 86.3838789 | H50: =IF(G50=0," ",IF($H$5=1," ",$H$5*G50)) -> 
E51: =G50/B4 -> 86.3838789 | F51: Per Year
A52: 5. RETURN OVER TOTAL VARIABLE COSTS | G52: =G12-G50 -> 63.6161211 | H52: =IF(G52=0," ",IF($H$5=1," ",$H$5*G52)) -> 
A54: 6. MACHINERY FIXED COSTS (BASED ON NEW EQUIPMENT COST)
B55: TRACTOR & MACHINERY | D55: ACRE | E55: 1 | F55: =H83+H88 -> 9.39 | G55: =ROUND((E55*F55),2) -> 9.39 | H55: =IF($H$5=1," ",IF(E55=0," ",$H$5*G55)) -> 
A56: 7. OTHER FIXED COSTS
B57: GENERAL OVERHEAD | D57: DOL. | E57: =(G50) -> 86.3838789 | F57: 0 | G57: =ROUND((E57*F57),2) -> 0 | H57: =IF($H$5=1," ",IF(E57=0," ",$H$5*G57)) -> 
A59: 8. TOTAL FIXED COSTS: | G59: =SUM(G55:G57) -> 9.39 | H59: =IF(G59=0," ",IF($H$5=1," ",$H$5*G59)) -> 
A61: 9. TOTAL VARIABLE & FIXED COSTS | E61: =G61/$E$10 -> 0.319246263 | F61: Per Day | G61: =G50+G59 -> 95.7738789 | H61: =IF(G61=0," ",IF($H$5=1," ",$H$5*G61)) -> 
E62: =G61/B4 -> 95.7738789 | F62: Per Year
A64: 10. PROJECTED NET RETURNS TO LAND, RISK AND MANAGEMENT: | G64: =G12-G61 -> 54.2261211 | H64: =IF(G64=0," ",IF($H$5=1," ",$H$5*G64)) -> 
A65: * PLEASE NOTE: THIS BUDGET IS FOR PLANNING PURPOSES ONLY.
A66: * Fertilizer requirements will vary with application method, and/or residual nutrient levels in the plant & soil.
A73: =D3 -> Pasture Maintenance
B74: PER ACRE MACHINERY AND LABOR REQUIREMENTS
A75: MONTH | B75: OPERATION | C75: Times | D75: LABOR | E75: MACHINE | F75: FUEL, OIL, | G75: REPAIR | H75: FIXED
C76: OVER | D76: HOURS | E76: HOURS | F76: & LUBE | G76: COSTS | H76: COSTS | J76: EQUIP
A77: PRE-HARVEST | J77: Codes
B78: =IF(J78=0," ",VLOOKUP(J78,Mach_Costs,2)) -> 75HP+Rotary Mower-10FT Pulled | C78: =B4 -> 1 | D78: =IF(J78=0,0,ROUND(E78*Rates!$E$15,2)) -> 0.23 | E78: =IF(J78=0,0,IF(J78<30,C78,VLOOKUP(J78,Mach_Costs,9)*C78)) -> 0.21 | F78: =IF(J78=0,0,IF(J78<30,VLOOKUP(J78,Mach_Costs,4)*C78,VLOOKUP(J78,Mach_Costs,13)*C78))*$N$83 -> 2.59 | G78: =IF(J78=0,0,IF(J78<30,VLOOKUP(J78,Mach_Costs,5)*C78,VLOOKUP(J78,Mach_Costs,14)*C78)) -> 1.6 | H78: =IF(J78=0,0,IF(J78<30,VLOOKUP(J78,Mach_Costs,7)*C78,VLOOKUP(J78,Mach_Costs,16)*C78)) -> 2.52 | J78: 422
B79: =IF(J79=0," ",VLOOKUP(J79,Mach_Costs,2)) -> 55HP + Mounted Sprayer | C79: 1 | D79: =IF(J79=0,0,ROUND(E79*Rates!$E$15,2)) -> 0.18 | E79: =IF(J79=0,0,IF(J79<30,C79,VLOOKUP(J79,Mach_Costs,9)*C79)) -> 0.16 | F79: =IF(J79=0,0,IF(J79<30,VLOOKUP(J79,Mach_Costs,4)*C79,VLOOKUP(J79,Mach_Costs,13)*C79))*$N$83 -> 1.43 | G79: =IF(J79=0,0,IF(J79<30,VLOOKUP(J79,Mach_Costs,5)*C79,VLOOKUP(J79,Mach_Costs,14)*C79)) -> 1 | H79: =IF(J79=0,0,IF(J79<30,VLOOKUP(J79,Mach_Costs,7)*C79,VLOOKUP(J79,Mach_Costs,16)*C79)) -> 1.53 | J79: 265
B80: =IF(J80=0," ",VLOOKUP(J80,Mach_Costs,2)) -> 75HP + Granular Applicator | C80: 1 | D80: =IF(J80=0,0,ROUND(E80*Rates!$E$15,2)) -> 0.62 | E80: =IF(J80=0,0,IF(J80<30,C80,VLOOKUP(J80,Mach_Costs,9)*C80)) -> 0.56 | F80: =IF(J80=0,0,IF(J80<30,VLOOKUP(J80,Mach_Costs,4)*C80,VLOOKUP(J80,Mach_Costs,13)*C80))*$N$83 -> 6.9 | G80: =IF(J80=0,0,IF(J80<30,VLOOKUP(J80,Mach_Costs,5)*C80,VLOOKUP(J80,Mach_Costs,14)*C80)) -> 3.5 | H80: =IF(J80=0,0,IF(J80<30,VLOOKUP(J80,Mach_Costs,7)*C80,VLOOKUP(J80,Mach_Costs,16)*C80)) -> 5.34 | J80: 259
B81: =IF(J81=0," ",VLOOKUP(J81,Mach_Costs,2)) ->  | D81: =IF(J81=0,0,ROUND(E81*Rates!$E$15,2)) -> 0 | E81: =IF(J81=0,0,IF(J81<30,C81,VLOOKUP(J81,Mach_Costs,9)*C81)) -> 0 | F81: =IF(J81=0,0,IF(J81<30,VLOOKUP(J81,Mach_Costs,4)*C81,VLOOKUP(J81,Mach_Costs,13)*C81))*$N$83 -> 0 | G81: =IF(J81=0,0,IF(J81<30,VLOOKUP(J81,Mach_Costs,5)*C81,VLOOKUP(J81,Mach_Costs,14)*C81)) -> 0 | H81: =IF(J81=0,0,IF(J81<30,VLOOKUP(J81,Mach_Costs,7)*C81,VLOOKUP(J81,Mach_Costs,16)*C81)) -> 0
A82: =Rates!E16-1 -> 0.25 | B82: UNALLOCATED LABOR(HRS./AC.) | D82: =IF(A82>0,ROUND(SUM($D$78:$D$81)*(A82),2),ROUND(SUM($D$78:$D$81)*(Rates!$E$16-1),2)) -> 0.26
B83: SUB-TOTAL PRE-HARVEST | D83: =SUM(D77:D82) -> 1.29 | E83: =SUM(E77:E81) -> 0.93 | F83: =SUM(F77:F81) -> 10.92 | G83: =SUM(G77:G81) -> 6.1 | H83: =SUM(H77:H81) -> 9.39 | J83: 0 | K83: Diesel Fuel Adjustment Price | N83: =IF(J83=0,1,J83/Rates!E7) -> 1
A84: HARVEST
B85: =IF(J85=0," ",VLOOKUP(J85,Mach_Costs,2)) ->  | D85: =IF(J85=0,0,ROUND(E85*Rates!$E$15,2)) -> 0 | E85: =IF(J85=0,0,IF(J85<30,C85,VLOOKUP(J85,Mach_Costs,9)*C85)) -> 0 | F85: =IF(J85=0,0,IF(J85<30,VLOOKUP(J85,Mach_Costs,4)*C85,VLOOKUP(J85,Mach_Costs,13)*C85))*$N$83 -> 0 | G85: =IF(J85=0,0,IF(J85<30,VLOOKUP(J85,Mach_Costs,5)*C85,VLOOKUP(J85,Mach_Costs,14)*C85)) -> 0 | H85: =IF(J85=0,0,IF(J85<30,VLOOKUP(J85,Mach_Costs,7)*C85,VLOOKUP(J85,Mach_Costs,16)*C85)) -> 0
B86: =IF(J86=0," ",VLOOKUP(J86,Mach_Costs,2)) ->  | D86: =IF(J86=0,0,ROUND(E86*Rates!$E$15,2)) -> 0 | E86: =IF(J86=0,0,IF(J86<30,C86,VLOOKUP(J86,Mach_Costs,9)*C86)) -> 0 | F86: =IF(J86=0,0,IF(J86<30,VLOOKUP(J86,Mach_Costs,4)*C86,VLOOKUP(J86,Mach_Costs,13)*C86))*$N$83 -> 0 | G86: =IF(J86=0,0,IF(J86<30,VLOOKUP(J86,Mach_Costs,5)*C86,VLOOKUP(J86,Mach_Costs,14)*C86)) -> 0 | H86: =IF(J86=0,0,IF(J86<30,VLOOKUP(J86,Mach_Costs,7)*C86,VLOOKUP(J86,Mach_Costs,16)*C86)) -> 0
A87: =Rates!E16-1 -> 0.25 | B87: UNALLOCATED LABOR(HRS./AC.) | D87: =IF(A87>0,ROUND(SUM($D$85:$D$86)*(A87),2),ROUND(SUM($D$85:$D$86)*(Rates!$E$16-1),2)) -> 0
B88: SUB-TOTAL HARVEST | D88: =SUM(D85:D87) -> 0 | E88: =SUM(E85:E87) -> 0 | F88: =SUM(F85:F87) -> 0 | G88: =SUM(G85:G87) -> 0 | H88: =SUM(H85:H87) -> 0
F90: =IF(J83=0,Rates!E7,J83) -> 2.4 | G90: Diesel Fuel
B93: CHEMICAL USE ASSUMPTIONS
C94: % of | F94: PRICE OR | G94: TOTAL | J94: CHEM
A95: TYPE | B95: Trade Name | C95: Acres | D95: UNIT | E95: QUANTITY | F95: COST/UNIT | G95: PER ACRE | H95: MONTH | J95: Codes | L95: HERBICIDE | M95: INSECTICIDE | N95: FUNGICIDE
A96: =IF(J96=0," ",IF(VLOOKUP(J96,Chem_P,2)="HERBICIDE","H",IF(VLOOKUP(J96,Chem_P,2)="Insecticide","I",IF(VLOOKUP(J96,Chem_P,2)="Fungicide","F",IF(VLOOKUP(J96,Chem_P,2)="Nematicide","N"," "))))) ->  | B96: =IF(J96=0," ",VLOOKUP(J96,Chem_P,3)) ->  | D96: =IF(J96=0," ",VLOOKUP(J96,Chem_P,6)) ->  | F96: =IF(J96=0," ",K96) ->  | G96: =IF(J96=0," ",ROUND(IF(C96>0,(C96*E96*F96),(E96*F96)),2)) ->  | K96: =IF(VLOOKUP(J96,Chem_P,5)="GAL",IF(VLOOKUP(J96,Chem_P,6)="PT",VLOOKUP(J96,Chem_P,9)/8,IF(VLOOKUP(J96,Chem_P,6)="QT",VLOOKUP(J96,Chem_P,9)/4,IF(VLOOKUP(J96,Chem_P,6)="OZ",VLOOKUP(J96,Chem_P,9)/128,IF(VLOOKUP(J96,Chem_P,6)="LB",VLOOKUP(J96,Chem_P,9)/8.3,VLOOKUP(J96,Chem_P,9))))),IF(VLOOKUP(J96,Chem_P,5)="LB",IF(VLOOKUP(J96,Chem_P,6)="PT",VLOOKUP(J96,Chem_P,9)/0.9639,IF(VLOOKUP(J96,Chem_P,6)="QT",VLOOKUP(J96,Chem_P,9)/0.4819,IF(VLOOKUP(J96,Chem_P,6)="OZ",VLOOKUP(J96,Chem_P,9)/16,IF(VLOOKUP(J96,Chem_P,6)="GAL",VLOOKUP(J96,Chem_P,9)/0.1205,VLOOKUP(J96,Chem_P,9))))),IF(VLOOKUP(J96,Chem_P,5)="OZ",IF(VLOOKUP(J96,Chem_P,6)="PT",VLOOKUP(J96,Chem_P,9),IF(VLOOKUP(J96,Chem_P,6)="QT",VLOOKUP(J96,Chem_P,9),IF(VLOOKUP(J96,Chem_P,6)="GAL",VLOOKUP(J96,Chem_P,9),IF(VLOOKUP(J96,Chem_P,6)="LB",VLOOKUP(J96,Chem_P,9)/0.0625,VLOOKUP(J96,Chem_P,9))))),VLOOKUP(J96,Chem_P,9)))) ->  | L96: =IF($J96=0," ",IF(VLOOKUP($J96,Chem_P,2)=L$95,$G96,IF(VLOOKUP($J96,Chem_P,2)=L$94,$G96," "))) ->  | M96: =IF($J96=0," ",IF(VLOOKUP($J96,Chem_P,2)=M$95,$G96,IF(VLOOKUP($J96,Chem_P,2)=M$94,$G96," "))) ->  | N96: =IF($J96=0," ",IF(VLOOKUP($J96,Chem_P,2)=N$95,$G96,IF(VLOOKUP($J96,Chem_P,2)=N$94,$G96," "))) -> 
A97: =IF(J97=0," ",IF(VLOOKUP(J97,Chem_P,2)="HERBICIDE","H",IF(VLOOKUP(J97,Chem_P,2)="Insecticide","I",IF(VLOOKUP(J97,Chem_P,2)="Fungicide","F",IF(VLOOKUP(J97,Chem_P,2)="Nematicide","N"," "))))) -> H | B97: =IF(J97=0," ",VLOOKUP(J97,Chem_P,3)) -> 2, 4-D Amine | C97: 0.25 | D97: =IF(J97=0," ",VLOOKUP(J97,Chem_P,6)) -> PT | E97: 2 | F97: 2.035 | G97: =IF(J97=0," ",ROUND(IF(C97>0,(C97*E97*F97),(E97*F97)),2)) -> 1.02 | J97: 501 | K97: =IF(VLOOKUP(J97,Chem_P,5)="GAL",IF(VLOOKUP(J97,Chem_P,6)="PT",VLOOKUP(J97,Chem_P,9)/8,IF(VLOOKUP(J97,Chem_P,6)="QT",VLOOKUP(J97,Chem_P,9)/4,IF(VLOOKUP(J97,Chem_P,6)="OZ",VLOOKUP(J97,Chem_P,9)/128,IF(VLOOKUP(J97,Chem_P,6)="LB",VLOOKUP(J97,Chem_P,9)/8.3,VLOOKUP(J97,Chem_P,9))))),IF(VLOOKUP(J97,Chem_P,5)="LB",IF(VLOOKUP(J97,Chem_P,6)="PT",VLOOKUP(J97,Chem_P,9)/0.9639,IF(VLOOKUP(J97,Chem_P,6)="QT",VLOOKUP(J97,Chem_P,9)/0.4819,IF(VLOOKUP(J97,Chem_P,6)="OZ",VLOOKUP(J97,Chem_P,9)/16,IF(VLOOKUP(J97,Chem_P,6)="GAL",VLOOKUP(J97,Chem_P,9)/0.1205,VLOOKUP(J97,Chem_P,9))))),IF(VLOOKUP(J97,Chem_P,5)="OZ",IF(VLOOKUP(J97,Chem_P,6)="PT",VLOOKUP(J97,Chem_P,9),IF(VLOOKUP(J97,Chem_P,6)="QT",VLOOKUP(J97,Chem_P,9),IF(VLOOKUP(J97,Chem_P,6)="GAL",VLOOKUP(J97,Chem_P,9),IF(VLOOKUP(J97,Chem_P,6)="LB",VLOOKUP(J97,Chem_P,9)/0.0625,VLOOKUP(J97,Chem_P,9))))),VLOOKUP(J97,Chem_P,9)))) -> 2.035 | L97: =IF($J97=0," ",IF(VLOOKUP($J97,Chem_P,2)=L$95,$G97,IF(VLOOKUP($J97,Chem_P,2)=L$94,$G97," "))) -> 1.02
A98: H | B98: =IF(J98=0," ",VLOOKUP(J98,Chem_P,3)) -> Banvel | C98: 0.25 | D98: =IF(J98=0," ",VLOOKUP(J98,Chem_P,6)) -> PT | E98: 1 | F98: 11.61 | G98: =IF(J98=0," ",ROUND(IF(C98>0,(C98*E98*F98),(E98*F98)),2)) -> 2.9 | J98: 514 | K98: =IF(VLOOKUP(J98,Chem_P,5)="GAL",IF(VLOOKUP(J98,Chem_P,6)="PT",VLOOKUP(J98,Chem_P,9)/8,IF(VLOOKUP(J98,Chem_P,6)="QT",VLOOKUP(J98,Chem_P,9)/4,IF(VLOOKUP(J98,Chem_P,6)="OZ",VLOOKUP(J98,Chem_P,9)/128,IF(VLOOKUP(J98,Chem_P,6)="LB",VLOOKUP(J98,Chem_P,9)/8.3,VLOOKUP(J98,Chem_P,9))))),IF(VLOOKUP(J98,Chem_P,5)="LB",IF(VLOOKUP(J98,Chem_P,6)="PT",VLOOKUP(J98,Chem_P,9)/0.9639,IF(VLOOKUP(J98,Chem_P,6)="QT",VLOOKUP(J98,Chem_P,9)/0.4819,IF(VLOOKUP(J98,Chem_P,6)="OZ",VLOOKUP(J98,Chem_P,9)/16,IF(VLOOKUP(J98,Chem_P,6)="GAL",VLOOKUP(J98,Chem_P,9)/0.1205,VLOOKUP(J98,Chem_P,9))))),IF(VLOOKUP(J98,Chem_P,5)="OZ",IF(VLOOKUP(J98,Chem_P,6)="PT",VLOOKUP(J98,Chem_P,9),IF(VLOOKUP(J98,Chem_P,6)="QT",VLOOKUP(J98,Chem_P,9),IF(VLOOKUP(J98,Chem_P,6)="GAL",VLOOKUP(J98,Chem_P,9),IF(VLOOKUP(J98,Chem_P,6)="LB",VLOOKUP(J98,Chem_P,9)/0.0625,VLOOKUP(J98,Chem_P,9))))),VLOOKUP(J98,Chem_P,9)))) -> 11.61 | L98: 2.9
A99: H | B99: Remedy Ultra | C99: 0.1 | D99: QT | E99: 1 | F99: 19.2 | G99: 1.92 | J99: 568 | K99: =IF(VLOOKUP(J99,Chem_P,5)="GAL",IF(VLOOKUP(J99,Chem_P,6)="PT",VLOOKUP(J99,Chem_P,9)/8,IF(VLOOKUP(J99,Chem_P,6)="QT",VLOOKUP(J99,Chem_P,9)/4,IF(VLOOKUP(J99,Chem_P,6)="OZ",VLOOKUP(J99,Chem_P,9)/128,IF(VLOOKUP(J99,Chem_P,6)="LB",VLOOKUP(J99,Chem_P,9)/8.3,VLOOKUP(J99,Chem_P,9))))),IF(VLOOKUP(J99,Chem_P,5)="LB",IF(VLOOKUP(J99,Chem_P,6)="PT",VLOOKUP(J99,Chem_P,9)/0.9639,IF(VLOOKUP(J99,Chem_P,6)="QT",VLOOKUP(J99,Chem_P,9)/0.4819,IF(VLOOKUP(J99,Chem_P,6)="OZ",VLOOKUP(J99,Chem_P,9)/16,IF(VLOOKUP(J99,Chem_P,6)="GAL",VLOOKUP(J99,Chem_P,9)/0.1205,VLOOKUP(J99,Chem_P,9))))),IF(VLOOKUP(J99,Chem_P,5)="OZ",IF(VLOOKUP(J99,Chem_P,6)="PT",VLOOKUP(J99,Chem_P,9),IF(VLOOKUP(J99,Chem_P,6)="QT",VLOOKUP(J99,Chem_P,9),IF(VLOOKUP(J99,Chem_P,6)="GAL",VLOOKUP(J99,Chem_P,9),IF(VLOOKUP(J99,Chem_P,6)="LB",VLOOKUP(J99,Chem_P,9)/0.0625,VLOOKUP(J99,Chem_P,9))))),VLOOKUP(J99,Chem_P,9)))) -> 19.2 | L99: 1.92
A105: =IF(J105=0," ","Notes") -> Notes | B105: =IF(J105=0," ",VLOOKUP(J105,Chem_P,2)) -> Chemical Type: H = Herbicide; I = Insecticide; F = Fungicide; G = Growth Regulator; X = Nemacides/Fumigants | J105: 1013 | M105: =IF($J105=0," ",IF(VLOOKUP($J105,Chem_P,2)=M$141,$G105,IF(VLOOKUP($J105,Chem_P,2)=M$140,$G105," "))) ->  | N105: =IF($J105=0," ",IF(VLOOKUP($J105,Chem_P,2)=N$141,$G105,IF(VLOOKUP($J105,Chem_P,2)=N$140,$G105," "))) -> 
B106: =IF(J106=0," ",VLOOKUP(J106,Chem_P,2)) -> Weed control depends on weed infestation. | J106: 1004 | L106: =SUM(L96:L104) -> 5.84 | M106: =SUM(M98:M103) -> 0 | N106: =SUM(N98:N103) -> 0
A108: Trade and brand names are used only for the purpose of providing information. Virginia Cooperative Extension does not guarantee or warrant
A109: the standard of any product named to the exclusion of others which also may be suitable.
B142: Finpack Budget Summary
B143: =D3 -> Pasture Maintenance | C143: =+D10 -> Grazing Days | D143: =+E10 -> 300
B144: Price | D144: =+F10 -> 0.5
B145: Crop Value | D145: =(D143*D144)/B4 -> 150
B146: Misc. Inc. | D146: =G147-G145 -> 0
B147: Gross Income | D147: =G12/B4 -> 150
B148: Direct Costs
B149: >Seed | D149: =SUM(G15:G15)/B4 -> 8.6938789
B150: >Fertilizer & Lime | D150: =SUM(G18:G22)/B4 -> 31.33
B151: >Chemicals | D151: =SUM(G23:G26)/B4 -> 5.84
B152: >Crop Insurance | D152: =G31/B4 -> 6.41
B153: >Drying Fuel | D153: =G46 -> 0
B154: >Irrigation
B155: >Packaging & Supplies
B156: >Custom Hire
B157: >Hired Labor
B158: Total Direct Cost | D158: =SUM(D149:D157) -> 52.2738789
B159: Labor Hours | D159: =(SUM(E29:E29)+SUM(E43:E43))/3 -> 0.43

Sheet Chemicals
A1: ESTIMATED 2017/2018 PRICES FOR FARM CHEMICALS
A2: (USED IN PREPARING THE ENTERPRISE BUDGETS FOR 2018)
C4: PRODUCT | F4: BUD | I4: AVERAGE
A5: CODE | B5: TYPE | C5: NAME | D5: MANUFACTURER | E5: UNIT | F5: GET | G5: PRICE 1 | H5: PRICE 2 | I5: PRICE | J5: INGREDIENTS | K5: Comments
A6: 0
A7: 1 | B7: BACTERICIDE | C7: Agri-mycin 17 | D7: Nufarm Americas | E7: LB | F7: OZ | G7: 11.76 | H7: 12.6 | I7: =ROUND(IF(G7=0,H7,IF(H7=0,G7,AVERAGE(G7,H7))),2) -> 12.18 | J7: streptomycin
A8: 2 | B8: BACTERICIDE | C8: MYCOSHIELD A T | D8: Nufarm | E8: LB | F8: OZ | G8: 12.5 | I8: =ROUND(IF(G8=0,H8,IF(H8=0,G8,AVERAGE(G8,H8))),2) -> 12.5 | J8: oxytetracycline
A9: 3 | B9: BACTERICIDE | C9: Ag Streptomycin | D9: MANA Crop Protection | E9: LB | F9: OZ | G9: 10.6 | H9: 10.5 | I9: =ROUND(IF(G9=0,H9,IF(H9=0,G9,AVERAGE(G9,H9))),2) -> 10.55 | J9: streptomycin
A10: 10 | B10: DEFOLIANT
A11: 11 | B11: DEFOLIANT | C11: CottonQuik | D11: Nufarm Ag Products | E11: GAL | F11: QT | G11: 38.72 | H11: =4.52*8 -> 36.16 | I11: =ROUND(IF(G11=0,H11,IF(H11=0,G11,AVERAGE(G11,H11))),2) -> 37.44 | J11: ethephon+AMADS
A12: 11 | B12: DEFOLIANT | C12: First Pick | D12: Nufarm Ag Products | E12: GAL | F12: QT | G12: 28.4 | I12: 28.4 | J12: ethephon+AMADS
A13: 12 | B13: DEFOLIANT | C13: Def 6 | D13: Bayer Crop Science | E13: GAL | F13: PT | G13: 66 | H13: =10.54*8 -> 84.32 | I13: 75.16 | J13: S,S,S-Tributyle phosphorotrithioate
A14: 13 | B14: DEFOLIANT | C14: Dropp SC | D14: Bayer Crop Science | E14: GAL | F14: OZ | G14: =1.6*128 -> 204.8 | I14: 204.8 | J14: thidiazuron
A15: 14 | B15: DEFOLIANT | C15: FreeFall SC | D15: Nufarm Ag Products | E15: GAL | F15: OZ | G15: =1.34*128 -> 171.52 | H15: =1.5*128 -> 192 | I15: 181.76 | J15: thidiazuron
A16: 15 | B16: DEFOLIANT | C16: Pix Plus | D16: Arysta Life Science | E16: GAL | F16: OZ | G16: 51.53 | H16: 49.92 | I16: 50.73 | J16: mepiquat chloride
A17: 17 | B17: DEFOLIANT | C17: Folex 6EC | D17: Amvec Chemical | E17: GAL | F17: PT | G17: =8.99*8 -> 71.92 | H17: =10.54*8 -> 84.32 | I17: 78.12 | J17: S,S,S-Tributyle phosphorotrithioate
A18: 18 | B18: DEFOLIANT | C18: Harvade 5F | D18: Crompton | E18: GAL | F18: PT | G18: 54.86 | H18: 76.8 | I18: 65.83 | J18: dimethipin
A19: 19 | B19: DEFOLIANT | C19: thidiazuron | D19: Various | E19: GAL | F19: OZ | G19: 196 | H19: =1.5*128 -> 192 | I19: 194 | J19: thidiazuron
A20: 21 | B20: DEFOLIANT | C20: Ginstar EC | D20: Bayer Crop Science | E20: GAL | F20: PT | G20: =26.44*8 -> 211.52 | H20: =238.88 -> 238.88 | I20: 225.2 | J20: thidiazuron+diuron
A21: 22 | B21: DEFOLIANT | C21: Adios | D21: Arysta Life Science | E21: GAL | F21: OZ | G21: =1.38*128 -> 176.64 | H21: =1.29*128 -> 165.12 | I21: 170.88 | J21: thidiazuron+diuron
A22: 50 | B22: FUMIGANT
A23: 51 | B23: FUMIGANT
A24: 52 | B24: FUMIGANT
A25: 53 | B25: FUMIGANT | C25: Chloropicrin | E25: LB | F25: LB | G25: 3.1 | H25: 3.2 | I25: =ROUND(IF(G25=0,H25,IF(H25=0,G25,AVERAGE(G25,H25))),2) -> 3.15 | J25: chloropicrin
A26: 54 | B26: FUMIGANT | C26: Inline 60/33 | D26: Dow AgroSciences | E26: GAL | F26: GAL | G26: 33 | H26: 35 | I26: 34 | J26: dichloropropene+chloropicrin
A27: 55 | B27: FUMIGANT | C27: Metam CLR 42% | D27: Taminco | E27: GAL | F27: GAL | H27: 4 | I27: 4 | J27: Sodium mythyldithiocarbamate
A28: 55.5 | B28: FUMIGANT | C28: Metam KLR 54% | D28: Taminco | E28: GAL | F28: GAL | H28: 5 | I28: 5 | J28: Potassium N-mythyldithiocarbamate
A29: 56 | B29: FUMIGANT | C29: Mocap EC6 | D29: Bayer Crop Science | E29: GAL | F29: GAL | G29: 92 | H29: 95 | I29: 93.5 | J29: ethoprop
A30: 56.5 | B30: FUMIGANT | C30: Mocap 15G | D30: Bayer Crop Science | E30: LB | F30: LB | G30: 3 | I30: 3 | J30: ethoprop
A31: 57.25 | B31: FUMIGANT | C31: MIDAS 25:75 | D31: Arysta Life Science | E31: LB | F31: LB | G31: 6.75 | H31: 7 | I31: 6.88 | J31: indomethane + chloropicrin
A32: 58.1 | B32: FUMIGANT | C32: Pic C-60 | E32: LB | F32: LB | G32: 3.4 | H32: 3.78 | I32: 3.59 | J32: dichloropropene+chloropicrin
A33: 58.2 | B33: FUMIGANT | C33: Pic Plus | E33: GAL | F33: Gal | G33: =191.7/4.5 -> 42.6 | I33: 42.6 | J33: dichloropropene+chloropicrin
A34: 58.5 | B34: FUMIGANT | C34: Profume | D34: Dow AgroSciences | E34: LB | F34: LB | G34: 5.25 | I34: 5.25 | J34: sulfuryl fluoride
A35: 58.8 | B35: FUMIGANT | C35: Trifecta | E35: LB | F35: LB | I35: 0 | J35: Telone II, Chloropicrin, DMDS
A36: 59.2 | B36: FUMIGANT | C36: Telone C-17 | D36: Dow AgroSciences | E36: GAL | F36: GAL | G36: 19.5 | H36: 23 | I36: 21.25 | J36: dichloropropene+chloropicrin
A37: 59.4 | B37: FUMIGANT | C37: Telone C-35 | D37: Dow AgroSciences | E37: GAL | F37: GAL | G37: 29.2 | H37: 40 | I37: 34.6 | J37: dichloropropene+chloropicrin
A38: 59.6 | B38: FUMIGANT | C38: Telone II | D38: Dow AgroSciences | E38: GAL | F38: GAL | G38: 20.48 | H38: 27.2 | I38: 23.84 | J38: dichloropropene
A39: 60 | B39: FUMIGANT | C39: Temik 15G | D39: Bayer Crop Science | E39: LB | F39: LB | G39: 3.95 | H39: 3.8 | I39: 3.88 | J39: aldicarb
A40: 61 | B40: FUMIGANT | C40: Meymik 15G | D40: AgLogic LLC | E40: LB | F40: LB | G40: 3.95 | H40: 3.8 | I40: 3.88 | J40: aldicarb
A41: 63 | B41: FUMIGANT | C41: Vapam HL 42% | D41: Amvec Chemical | E41: GAL | F41: GAL | G41: 4.35 | H41: 5.05 | I41: 4.7 | J41: metam-sodium
A42: 64 | B42: FUMIGANT | C42: Paladin | E42: GAL | F42: GAL | I42: 0 | J42: Dimethyl Disulfide (DMDS)
A43: 65 | B43: FUMIGANT | C43: Paladin Pic | E43: LB | F43: LB | G43: 2.75 | I43: 2.75 | J43: Dimethyl Disulfide + chloropicrin
A44: 100 | B44: FUNGICIDE
A45: 101 | B45: FUNGICIDE | C45: Abound FL | D45: Syngenta | E45: GAL | F45: OZ | G45: 225.28 | H45: 269 | I45: =ROUND(IF(G45=0,H45,IF(H45=0,G45,AVERAGE(G45,H45))),2) -> 247.14 | J45: azoxystrobin
A46: 101.5 | B46: FUNGICIDE | C46: Absolute 500SC | D46: Bayer Crop Science | E46: GAL | F46: OZ | G46: 255.28 | H46: =53.42*8 -> 427.36 | I46: 341.32 | J46: tebuconazole + trifloxystrobin
A47: 102 | B47: FUNGICIDE | C47: Acrobat WP | E47: LB | F47: OZ | G47: 18.69 | H47: 24.5 | I47: 21.6 | J47: dimethomorph + mancozeb
A48: 103 | B48: FUNGICIDE | C48: Actigard 50WG | D48: Syngenta | E48: OZ | F48: OZ | G48: 28 | I48: 28 | J48: acibenzolar-S-methyl
A49: 103.5 | B49: FUNGICIDE | C49: AgriTin | D49: Nufarm Americas | E49: OZ | F49: OZ | I49: 0 | J49: triphenyltin hydroxide
A50: 104 | B50: FUNGICIDE | C50: Aliette | D50: Bayer Crop Science | E50: LB | F50: LB | G50: 12 | I50: 12 | J50: fosetyl al tris phosphonate
A51: 104.5 | B51: FUNGICIDE | C51: Alto 100SL | D51: Syngenta | E51: GAL | F51: OZ | I51: 0 | J51: cyproconazole
A52: 105 | B52: FUNGICIDE | C52: Apron Maxx | D52: Syngenta | E52: GAL | F52: OZ | I52: 0 | J52: Fludioxonil+Mefenoxam
A53: 105.5 | B53: FUNGICIDE | C53: Artisan | D53: Nichino America | E53: GAL | F53: OZ | G53: 122.88 | H53: 127.99 | I53: 125.44 | J53: Tilt + Moncut
A54: 106 | B54: FUNGICIDE | C54: Basicop | D54: Griffin | E54: LB | F54: LB | I54: 0 | J54: fixed copper
A55: 107 | B55: FUNGICIDE | C55: Baytan 30 Flowable | D55: Bayer Crop Science | E55: LB | F55: OZ | G55: 60.55 | H55: 68.25 | I55: 64.4 | J55: triadimefon
A56: 108 | B56: FUNGICIDE | I56: 0 | J56: benomyl
A57: 109 | B57: FUNGICIDE | C57: Botran 5F | D57: Gowan Chemical | E57: LB | F57: LB | I57: 0 | J57: dicloran
A58: 110 | B58: FUNGICIDE | C58: Bravo - Weather Stik | D58: Syngenta | E58: GAL | F58: PT | G58: 35.44 | H58: 52.48 | I58: 43.96 | J58: chlorothalonil
A59: 110.1 | B59: FUNGICIDE | C59: Bravo 720 | D59: Syngenta | E59: GAL | F59: PT | H59: 41 | I59: 41 | J59: chlorothalonil
A60: 110.2 | B60: FUNGICIDE | C60: Bravo S | D60: Helena Chemical | E60: GAL | F60: PT | H60: 29 | I60: 29 | J60: chlorothalonil
A61: 110.3 | B61: FUNGICIDE | C61: Bravo Ultrex | D61: Syngenta | E61: LB | F61: LB | G61: 5.83 | H61: 6 | I61: 5.92 | J61: chlorothalonil
A62: 111 | B62: FUNGICIDE | C62: Bumper 41.8EC | D62: MANA Crop Protection | E62: GAL | F62: OZ | G62: 274.19 | H62: 301.4 | I62: 287.8 | J62: propiconazole
A63: 112 | B63: FUNGICIDE | C63: Cabrio | D63: BASF | E63: LB | F63: OZ | G63: 29.67 | H63: 32.85 | I63: 31.26 | J63: pyraclostrobin
A64: 113 | B64: FUNGICIDE | C64: Caramba | E64: GAL | F64: OZ | G64: 146.64 | H64: 156.36 | I64: 151.5 | J64: metconazol
A65: 115 | B65: FUNGICIDE | C65: Captan 4L | D65: Drexel / Red Eagle | E65: GAL | F65: PT | G65: 20.16 | H65: 25 | I65: 22.58 | J65: captan
A66: 115.5 | B66: FUNGICIDE | C66: Captan 80WDG | D66: Drexel / Red Eagle | E66: LB | F66: LB | G66: 3.35 | H66: 3.6 | I66: 3.48 | J66: captan
A67: 116 | B67: FUNGICIDE | C67: Champ Formula 2 | D67: Nufarm Americas | E67: GAL | F67: PT | G67: 37.38 | I67: 37.38 | J67: fixed copper
A68: 117 | B68: FUNGICIDE | C68: Clorox | D68: Various | E68: GAL | F68: PT | H68: 3 | I68: 3 | J68: sodium hypoclorite
A69: 117.5 | B69: FUNGICIDE | C69: Convoy 3.8F | D69: Nichino America | E69: GAL | F69: OZ | G69: =0.31*128 -> 39.68 | I69: 39.68 | J69: flutolanil
A70: 118 | B70: FUNGICIDE | C70: Copper Sulphate | E70: GAL | F70: GAL | G70: 60.99 | I70: 60.99
A71: 119 | B71: FUNGICIDE | C71: Cuprofix Ultra 40 Dis | D71: United Phorphorus | E71: lB | F71: LB | G71: 3.46 | H71: 3.55 | I71: 3.51 | J71: fixed copper
A72: 120 | B72: FUNGICIDE | C72: Curzate M-8 | D72: DuPont | E72: LB | F72: OZ | I72: 0 | J72: cymoxanil + mancozeb
A73: 121 | B73: FUNGICIDE | C73: Dithane M45 | D73: Dow AgroSciences | E73: LB | F73: LB | G73: 2.75 | I73: 2.75 | J73: mancozeb
A74: 122 | B74: FUNGICIDE | C74: Dithane F45 | D74: Dow AgroSciences | E74: GAL | F74: QT | G74: 31.24 | H74: 32.85 | I74: 32.05 | J74: mancozeb
A75: 122.5 | B75: FUNGICIDE | C75: Domark 230ME | D75: Valent | E75: GAL | F75: OZ | G75: 265.54 | H75: 280.32 | I75: 272.93 | J75: tebuconazole
A76: 123 | B76: FUNGICIDE | C76: Echo 720 | D76: Sipcam Agro USA | E76: GAL | F76: PT | H76: 34 | I76: 34 | J76: chlorothalonil
A77: 123.5 | B77: FUNGICIDE | C77: Echo 90DF | D77: Sipcam Agro USA | E77: lB | F77: LB | I77: 0 | J77: chlorothalonil
A78: 124 | B78: FUNGICIDE | C78: Elevate | D78: Arysta Life Science | E78: LB | F78: LB | G78: 36.21 | H78: 36.24 | I78: 36.23 | J78: fenhexamid
A79: 124.5 | B79: FUNGICIDE | C79: Endura 70WP | D79: Syngenta | E79: OZ | F79: OZ | G79: 4.37 | H79: 4.38 | I79: 4.38 | J79: Boscalid
A80: 125 | B80: FUNGICIDE | C80: Equus | D80: ADAMA | E80: GAL | F80: PT | G80: 33.94 | H80: 34 | I80: 33.97 | J80: chlorothalonil
A81: 125.5 | B81: FUNGICIDE | C81: Evito 480SC | D81: Arysta Life Science | E81: GAL | F81: OZ | I81: 0 | J81: fluoxastrobin
A82: 126 | B82: FUNGICIDE | C82: Ferbam Granuflo | D82: Taminco | E82: LB | F82: LB | H82: =6/0.773 -> 7.761966365 | I82: 7.76 | J82: ferric dimethyldithiocarbamate
A83: 127 | B83: FUNGICIDE | C83: Flint | D83: Bayer Crop Science | E83: OZ | F83: OZ | G83: 10.42 | I83: 10.42 | J83: trifloxystrobin
A84: 128 | B84: FUNGICIDE | C84: Flouronil | D84: Nufarm Americas | E84: LB | F84: LB | I84: 0 | J84: mefenoxam + chlorothalonil
A85: 129 | B85: FUNGICIDE | C85: Folicur 3.6F | D85: Bayer Crop Science | E85: GAL | F85: OZ | G85: =1.08*128 -> 138.24 | H85: 280.32 | I85: 209.28 | J85: tebuconazole
A86: 129.5 | B86: FUNGICIDE | C86: Tebuconazol 3.6F | D86: Amtide, LLC | E86: GAL | F86: OZ | G86: 38.2 | H86: 43.45 | I86: 40.83 | J86: tebuconazole
A87: 130 | B87: FUNGICIDE | C87: Forum | D87: BASF | E87: GAL | F87: OZ | G87: 217.09 | H87: 237.5 | I87: 227.3 | J87: dimethomorph
A88: 130.5 | B88: FUNGICIDE | C88: Gavel | D88: Gowan | E88: LB | F88: OZ | I88: 0 | J88: zoxamide+mancozeb
A89: 131 | B89: FUNGICIDE | C89: Gem | D89: Bayer Crop Science | E89: OZ | F89: OZ | G89: 7.2 | H89: 7.26 | I89: 7.23 | J89: trifloxystrobin
A90: 132 | B90: FUNGICIDE | C90: Headline EC | D90: BASF | E90: GAL | F90: OZ | G90: 336.64 | H90: 377.6 | I90: 357.12 | J90: pyraclostrobin
A91: 133 | B91: FUNGICIDE | C91: Indar 75WSP | D91: Dow AgroSciences | E91: LB | F91: OZ | I91: 0 | J91: fenbuconazole
A92: 133.5 | B92: FUNGICIDE | C92: Indar 2F | D92: Dow AgroSciences | E92: GAL | F92: OZ | G92: 257 | I92: 257 | J92: fenbuconazole
A93: 134 | B93: FUNGICIDE | C93: Kocide 3000 | D93: DuPont | E93: LB | F93: LB | G93: 6 | I93: 6 | J93: copper hydroxide
A94: 134.5 | B94: FUNGICIDE | C94: K-Pam | D94: Amvec Chemical | E94: GAL | F94: GAL | I94: 0 | J94: metam potassium
A95: 135 | B95: FUNGICIDE | C95: Laredo 25EC | D95: Dow AgroSciences | E95: GAL | F95: OZ | I95: 0 | J95: myclobutanil
A96: 136 | B96: FUNGICIDE | C96: Maneb 75DF | D96: United Phorphorus | E96: LB | F96: LB | G96: 3.24 | I96: 3.24 | J96: maneb
A97: 137 | B97: FUNGICIDE | C97: Manex | D97: Dupont | E97: GAL | F97: PT | G97: 18.72 | H97: 18.67 | I97: 18.7 | J97: maneb
A98: 138 | B98: FUNGICIDE | C98: Manex II | D98: Griffin | E98: GAL | F98: QT | I98: 0 | J98: mancozeb
A99: 138.5 | B99: FUNGICIDE | C99: ManKocide | D99: Griffin | E99: LB | F99: LB | I99: 0 | J99: mancozeb + copper hydroxide
A100: 140 | B100: FUNGICIDE | C100: Manzate 75DF | D100: Griffin | E100: LB | F100: LB | G100: 4.76 | H100: 4.96 | I100: 4.86 | J100: mancozeb
A101: 140.5 | B101: FUNGICIDE | C101: Manzate Flowable | D101: DuPont | E101: GAL | F101: QT | G101: =3.7*8 -> 29.6 | H101: 32.8 | I101: 31.2 | J101: mancozeb
A102: 140.6 | B102: FUNGICIDE | C102: Manzate Pro Stick | D102: UPI | E102: LB | F102: LB | G102: 3.4 | H102: 3.95 | I102: 3.68 | J102: mancozeb
A103: 141 | B103: FUNGICIDE | C103: Maxim | D103: Syngenta | E103: LB | F103: OZ | G103: 3.65 | H103: 3.85 | I103: 3.75 | J103: fludioxonil
A104: 141.5 | B104: FUNGICIDE | C104: Mertect 340-F | D104: Syngenta | E104: GAL | F104: OZ | G104: 339 | H104: 378.88 | I104: 358.94 | J104: thiabendazole
A105: 141.6 | B105: FUNGICIDE | C105: Messenger | D105: Eden Bioscience | E105: LB | F105: OZ | I105: 0 | J105: harpin protein
A106: 142 | B106: FUNGICIDE | C106: MetaStar 2E | E106: GAL | F106: PT | G106: 291 | I106: 291 | J106: metalaxyl
A107: 142.5 | B107: FUNGICIDE | C107: Microthiol | D107: UPI | E107: LB | F107: LB | G107: 1.59 | H107: 1.75 | I107: 1.67 | J107: micronized wettable sulfur
A108: 143 | B108: FUNGICIDE | C108: MonCoat MZ | D108: UAP-Platte Chemical | E108: LB | F108: LB | G108: 25.09 | H108: 26.75 | I108: 25.92 | J108: flutolanil + mancozeb
A109: 143.5 | B109: FUNGICIDE | C109: Moncut 70DF | D109: Gowan | E109: LB | F109: LB | G109: 28.58 | H109: 32.81 | I109: =ROUND(IF(G109=0,H109,IF(H109=0,G109,AVERAGE(G109,H109))),2) -> 30.7 | J109: flutolanil
A110: 144 | B110: FUNGICIDE
A111: 144.5 | B111: FUNGICIDE | C111: Rally 40WSP | D111: Dow AgroSciences | E111: OZ | F111: OZ | G111: 2.86 | H111: 2.9 | I111: 2.88 | J111: myclobutanil
A112: 145 | B112: FUNGICIDE | C112: Omega 500 | D112: Syngenta | E112: PT | F112: OZ | G112: 290 | H112: 325 | I112: 307.5 | J112: fluazinam
A113: 146 | B113: FUNGICIDE | C113: Orbit | D113: Syngenta | E113: QT | F113: OZ | G113: =2.75*32 -> 88 | I113: 88 | J113: propiconazole
A114: 147 | B114: FUNGICIDE | C114: Penncozeb | D114: UPI | E114: LB | F114: LB | G114: 3.02 | H114: 3.25 | I114: 3.14 | J114: mancozeb
A115: 147.5 | B115: FUNGICIDE | I115: 0
A116: 148 | B116: FUNGICIDE | C116: Polyram 80 DF | D116: UAP-Platte Chemical | E116: LB | F116: LB | G116: 2.63 | I116: 2.63 | J116: metiram
A117: 148.5 | B117: FUNGICIDE | C117: Presidio | D117: Valent Chemical | E117: QT | F117: OZ | G117: 255 | I117: 255 | J117: fluopicolide
A118: 148.8 | B118: FUNGICIDE | C118: Prevail | D118: Chemtura | E118: LB | F118: LB | G118: 28.06 | H118: 28.26 | I118: 28.16 | J118: carboxin + PCNB + metalaxyl
A119: 149 | B119: FUNGICIDE | C119: Previcur Flex | D119: Bayer Crop Science | E119: GAL | F119: PT | G119: 83 | I119: 83 | J119: propamocarb hydrochloride
A120: 149.5 | B120: FUNGICIDE | C120: Pristine | D120: BASF | E120: OZ | F120: OZ | G120: 2.99 | H120: =375/120 -> 3.125 | I120: 3.06 | J120: pyraclostrobin + boscalid
A121: 150 | B121: FUNGICIDE | C121: Procure 480SC | D121: Chemtura | E121: QT | F121: OZ | G121: 114.98 | I121: 114.98 | J121: triflumizole
A122: 151 | B122: FUNGICIDE | C122: Propiconazole 41.8% | D122: Amtide, LLC | E122: GAL | F122: OZ | G122: 78 | I122: 78 | J122: propiconazole
A123: 151.5 | B123: FUNGICIDE | C123: ProPhyt | D123: Helena Chemical | E123: GAL | F123: PT | G123: 41.09 | H123: 42.73 | I123: 41.91 | J123: potassium phosphite
A124: 152 | B124: FUNGICIDE | C124: Prosaro 421SC | D124: Bayer Crop Science | E124: GAL | F124: OZ | G124: 585 | H124: 712.96 | I124: 648.98 | J124: prothioconazole+tebuconazole
A125: 152.5 | B125: FUNGICIDE | C125: Provost 433SC | D125: Bayer Crop Science | E125: GAL | F125: OZ | G125: 202.24 | H125: 311.04 | I125: 256.64 | J125: prothioconazole+tebuconazole
A126: 153 | B126: FUNGICIDE | C126: Quadris | D126: Syngenta | E126: GAL | F126: OZ | G126: 273.92 | H126: 385.28 | I126: 329.6 | J126: azoxystrobin
A127: 153.1 | B127: FUNGICIDE | C127: Quadris/Ridomil Gold | D127: Syngenta | E127: GAL | F127: OZ | G127: 700 | H127: 837.12 | I127: 768.56 | J127: azoxystrobin + mefenoxam
A128: 153.2 | B128: FUNGICIDE | C128: Quadris Top | D128: Syngenta | E128: GAL | F128: OZ | G128: 288.91 | H128: 326.4 | I128: 307.66 | J128: azoxystrobin + chlorothalonil
A129: 153.5 | B129: FUNGICIDE | C129: Quilt | D129: Syngenta | E129: GAL | F129: OZ | G129: 140 | I129: 140 | J129: azoxystrobin + propiconazole
A130: 153.6 | B130: FUNGICIDE | C130: Quilt Xcel | D130: Syngenta | E130: GAL | F130: OZ | G130: 185 | H130: 203.44 | I130: 194.22 | J130: azoxystrobin + propiconazole
A131: 153.8 | B131: FUNGICIDE | C131: Quintec | D131: Dow AgroSciences | E131: OZ | F131: OZ | G131: 2.87 | H131: 3 | I131: 2.94 | J131: quinoxyfen
A132: 154 | B132: FUNGICIDE | C132: Ranman | D132: Summit Ag | E132: GAL | F132: OZ | G132: 825 | I132: 825 | J132: Cyazofamid
A133: 155 | B133: FUNGICIDE | C133: Reason | D133: Bayer Crop Science | E133: GAL | F133: OZ | G133: =1098/2.5 -> 439.2 | H133: =989/2.5 -> 395.6 | I133: 417.4 | J133: fenamidone
A134: 156 | B134: FUNGICIDE | C134: Revus | D134: Syngenta | E134: GAL | F134: OZ | G134: 349 | I134: 349 | J134: Mandipropamid
A135: 156.5 | B135: FUNGICIDE | C135: Revus Top | D135: Syngenta | E135: GAL | F135: OZ | G135: 295 | I135: 295 | J135: Mandipropamid + Difenoconazole
A136: 157 | B136: FUNGICIDE | C136: Ridomil 2E | D136: Syngenta | E136: GAL | F136: PT | G136: 291 | I136: 291 | J136: metalaxyl
A137: 157.1 | B137: FUNGICIDE | C137: Ridomil Gold 4EC | D137: Syngenta | E137: GAL | F137: PT | G137: =104.77*8 -> 838.16 | H137: 821.76 | I137: 829.96 | J137: mefenoxam
A138: 157.2 | B138: FUNGICIDE | C138: Ridomil Gold Bravo | D138: Syngenta | E138: GAL | F138: PT | G138: 110.86 | H138: 111.35 | I138: 111.11 | J138: mefenoxam + chlorothalonil
A139: 157.3 | B139: FUNGICIDE | C139: Ridomil Gold Copper | D139: Syngenta | E139: LB | F139: LB | G139: 14.18 | H139: 14.27 | I139: 14.23 | J139: mefenoxam + copper hydroxide
A140: 157.4 | B140: FUNGICIDE | C140: Ridomil Gold PC GR | D140: Syngenta | E140: LB | F140: LB | G140: 5.08 | H140: 6.45 | I140: 5.77 | J140: mefenoxam-PCNB
A141: 157.5 | B141: FUNGICIDE | C141: Ridomil Gold MZ | D141: Syngenta | E141: LB | F141: LB | G141: 14 | H141: 14.98 | I141: 14.49 | J141: mefenoxam + mancozeb
A142: 157.6 | B142: FUNGICIDE | C142: Ridomil Gold SL | D142: Syngenta | E142: GAL | F142: OZ | G142: 625 | H142: 704 | I142: 664.5 | J142: mefenoxam-
A143: 159 | B143: FUNGICIDE | C143: Ronilan | E143: LB | F143: LB | G143: 19 | H143: 20 | I143: 19.5 | J143: vinclozolin
A144: 160 | B144: FUNGICIDE | C144: Rovral | D144: FMC | E144: GAL | F144: PT | G144: 92 | H144: =14.8*8 -> 118.4 | I144: 105.2 | J144: iprodione
A145: 160.5 | B145: FUNGICIDE | C145: Nevado 4F | D145: MANA Crop Protection | E145: GAL | F145: PT | G145: 162.85 | H145: =17.83*8 -> 142.64 | I145: 152.75 | J145: iprodione
A146: 161 | B146: FUNGICIDE | C146: Rubigan EC | D146: Gowan Company | E146: QT | F146: OZ | G146: 73.54 | H146: 72.66 | I146: 73.1 | J146: fenarimol
A147: 161.3 | B147: FUNGICIDE | C147: Scala | D147: Bayer Crop Science | E147: GAL | F147: OZ | G147: 207.36 | H147: 212.56 | I147: 209.96 | J147: pyrimethanil
A148: 161.5 | B148: FUNGICIDE | C148: Cleary 3336 | D148: Cleary | E148: LB | F148: LB | I148: 0 | J148: thiophanate-methyl
A149: 162 | B149: FUNGICIDE | C149: Stellar 3.1EC | D149: Valent | E149: GAL | F149: OZ | I149: 0 | J149: fluopiolide+propamocarb hydrochloride
A150: 163 | B150: FUNGICIDE | C150: Stratego YLD | D150: Bayer Crop Science | E150: GAL | F150: OZ | G150: 498.52 | H150: 547.84 | I150: 523.18 | J150: propiconazole + trifloxystrobin
A151: 164 | B151: FUNGICIDE | C151: Sulfur 90WP | D151: Georgia Gulf | E151: LB | F151: LB | G151: 0.44 | I151: 0.44 | J151: sulfur 90%
A152: 165 | B152: FUNGICIDE | C152: Switch | D152: Syngenta | E152: LB | F152: OZ | G152: 4.5 | H152: 4.71 | I152: 4.61 | J152: cyprodinil + fludioxonil
A153: 166 | B153: FUNGICIDE | C153: Syllit FL | D153: Aceto | E153: GAL | F153: PT | G153: 51 | H153: 51.6 | I153: 51.3 | J153: dodine
A154: 167 | B154: FUNGICIDE | C154: Tanos | D154: Dupont | E154: LB | F154: OZ | G154: 38.67 | I154: 38.67 | J154: famoxadone + cymoxanil
A155: 167.5 | B155: FUNGICIDE | I155: 0
A156: 168 | B156: FUNGICIDE | C156: Terraclor 2E | E156: GAL | F156: PT | G156: =1.87*8 -> 14.96 | I156: 14.96 | J156: PCNB
A157: 168.5 | B157: FUNGICIDE | C157: Terraclor Super X 18.8G | E157: lB | F157: OZ | G157: 2.82 | H157: 3.28 | I157: 3.05 | J157: PCNB + Terrazole
A158: 169 | B158: FUNGICIDE | C158: Terramaster 4EC | D158: Chemtura | E158: GAL | F158: OZ | G158: =84.72*4 -> 338.88 | H158: =87*4 -> 348 | I158: 343.44 | J158: Etridiazole
A159: 170 | B159: FUNGICIDE | C159: Thiolux DF | D159: Syngenta | E159: LB | F159: LB | I159: 0 | J159: sulfur 80%
A160: 172 | B160: FUNGICIDE | C160: Tilt 3.6EC | D160: Syngenta | E160: GAL | F160: OZ | G160: 96 | H160: 170.24 | I160: 133.12 | J160: propiconazole
A161: 172.5 | B161: FUNGICIDE | C161: Tilt/Bravo | D161: Syngenta | E161: GAL | F161: OZ | G161: 52.48 | H161: 57.6 | I161: 55.04 | J161: propiconazole + chlorothalonil
A162: 172.8 | B162: FUNGICIDE | D162: Cheminova | E162: OZ | F162: OZ | H162: 2.53 | I162: 2.53 | J162: fluutriafol
A163: 173 | B163: FUNGICIDE | C163: Topsin 4.5FL | D163: United Phorphorus | E163: GAL | F163: OZ | G163: 71.68 | H163: =179/2.5 -> 71.6 | I163: 71.64 | J163: thiophanate-methyl
A164: 173.1 | B164: FUNGICIDE | C164: Topsin 70% WSB | D164: United Phorphorus | E164: LB | F164: OZ | G164: 8.4 | H164: 8.7 | I164: 8.55 | J164: thiophanate-methyl
A165: 173.3 | B165: FUNGICIDE | C165: Incognito | D165: MANA Crop Protection | E165: LB | F165: LB | G165: 12.22 | H165: 12.54 | I165: 12.38 | J165: thiophanate-methyl
A166: 173.5 | B166: FUNGICIDE | C166: TwinLine | D166: BASF | E166: GAL | F166: oz | G166: 226 | H166: 236.4 | I166: 231.2 | J166: pyraclostrobin + metconazole
A167: 174 | B167: FUNGICIDE | C167: Ultra Flourish | D167: Nufarm Americas | E167: GAL | F167: PT | G167: 160 | I167: 160 | J167: metalaxyl
A168: 174.5 | B168: FUNGICIDE | C168: Uppercut 3.6F | D168: Dupont | E168: GAL | F168: OZ | G168: 298.24 | H168: 280.32 | I168: 289.28 | J168: tebuconazole
A169: 175 | B169: FUNGICIDE | C169: Ziram | D169: UPI | E169: LB | F169: LB | G169: 3.53 | I169: 3.53 | J169: ziram
A170: 176 | B170: FUNGICIDE | C170: Zoxium | D170: Dow AgroSciences | E170: GAL | F170: OZ | I170: 0 | J170: zoxamide
A171: 398
A172: 399 | B172: GROWTH REG | C172: Amplify | D172: Loveland Products | E172: OZ | F172: OZ | I172: =ROUND(IF(G172=0,H172,IF(H172=0,G172,AVERAGE(G172,H172))),2) -> 0 | J172: 2, 6-Diisopropylnaphthalene
A173: 400 | B173: GROWTH REG | C173: Cerone | D173: Bayer Crop Science | E173: GAL | F173: PT | G173: 82.4 | H173: 103.2 | I173: 92.8 | J173: ethephon
A174: 401 | B174: GROWTH REG | C174: CottonQuik | D174: Nufarm Ag Products | E174: GAL | F174: QT | G174: 38.72 | H174: 42 | I174: 40.36 | J174: ethephon+AMADS
A175: 402 | B175: GROWTH REG | C175: Def 6 | D175: Bayer Crop Science | E175: GAL | F175: PT | G175: 52.64 | H175: 58.72 | I175: 55.68 | J175: S,S,S-Tributyle phosphorotrithioate
A176: 403 | B176: GROWTH REG | C176: Dropp 50W | D176: Bayer Crop Science | E176: GAL | F176: PT | G176: 40 | H176: 45.45 | I176: 42.73 | J176: thidiazuron
A177: 404 | B177: GROWTH REG | C177: Finish 6SC | D177: Bayer Crop Science | E177: GAL | F177: PT | G177: 68.59 | H177: 60.88 | I177: 64.74 | J177: ethephon+cyclanilide
A178: 406 | B178: GROWTH REG | C178: ethephon 6 | D178: Various | E178: GAL | F178: PT | G178: 22 | H178: =2.88*8 -> 23.04 | I178: 22.52 | J178: ethephon
A179: 407 | B179: GROWTH REG | C179: Super Boll | E179: GAL | F179: PT | G179: 40.32 | H179: =0.19*128 -> 24.32 | I179: 32.32 | J179: ethephon+cyclanilide
A180: 408 | B180: GROWTH REG | C180: Prep 6 | D180: Bayer Crop Science | E180: GAL | F180: PT | I180: 0 | J180: ethephon
A181: 409 | B181: GROWTH REG | C181: Pix Plus | E181: GAL | F181: OZ | G181: 35.84 | H181: 35.84 | I181: 35.84 | J181: mepiquat chloride
A182: 410 | B182: GROWTH REG | C182: Gramoxone/Starfire | D182: Various | E182: GAL | F182: PT | I182: 0 | J182: paraquat
A183: 411 | B183: GROWTH REG | C183: Prime Plus | D183: Syngenta | E183: GAL | F183: QT | G183: 49 | H183: 52 | I183: 50.5 | J183: flumetralin
A184: 412 | B184: GROWTH REG | C184: Royal MH30 | D184: Chemtura | E184: GAL | F184: GAL | G184: 14.5 | I184: 14.5 | J184: maleic hydrazide
A185: 413 | B185: GROWTH REG | C185: Sprout Nip | D185: Loveland Products | I185: 0 | J185: chlorpropham
A186: 414 | B186: GROWTH REG | C186: Pentia | D186: BASF | E186: GAL | F186: OZ | G186: 61.84 | H186: =6.46*8 -> 51.68 | I186: 56.76 | J186: mepiquat pentaborate
A187: 415 | B187: GROWTH REG | C187: ProGibb 4% PGR | D187: Valent | E187: QT | F187: OZ | G187: 15 | I187: 15 | J187: Gibberellic Acid
A188: 500 | B188: HERBICIDES
A189: 501 | B189: HERBICIDE | C189: 2, 4-D Amine | D189: Various | E189: GAL | F189: PT | G189: 14.56 | H189: 18 | I189: =ROUND(IF(G189=0,H189,IF(H189=0,G189,AVERAGE(G189,H189))),2) -> 16.28 | J189: 2,4-D
A190: 502 | B190: HERBICIDE | C190: 2, 4-D Ester | D190: Various | E190: GAL | F190: PT | G190: 17.6 | H190: 21.35 | I190: 19.48 | J190: 2,4-D
A191: 503 | B191: HERBICIDE | C191: 2, 4-DB | D191: Various | E191: GAL | F191: PT | G191: 28 | H191: 33.86 | I191: 30.93 | J191: 2, 4-DB
A192: 504 | B192: HERBICIDE | C192: Accent | D192: DuPont | E192: OZ | F192: OZ | G192: 31.94 | H192: 32.47 | I192: 32.21 | J192: nicosulfuron
A193: 504.5 | B193: HERBICIDE | C193: Accent Q | D193: DuPont | E193: OZ | F193: OZ | G193: 21.51 | H193: 26.31 | I193: 23.91 | J193: nicosulfuron + safener
A194: 505 | B194: HERBICIDE | C194: Aim EC | D194: FMC | E194: oz | F194: OZ | G194: =136.17/32 -> 4.2553125 | H194: 5.65 | I194: 4.95 | J194: carfentrazone-ethyl
A195: 506 | B195: HERBICIDE | C195: Alanap-L | D195: Crompton Uniroyal | E195: GAL | F195: GAL | G195: 37.5 | H195: 38.53 | I195: 38.02 | J195: naptalam
A196: 507 | B196: HERBICIDE | C196: Ally XP (Purestand) | D196: DuPont | E196: OZ | F196: OZ | G196: 2.95 | H196: 3.15 | I196: 3.05 | J196: metsulfuron-methyl
A197: 508 | B197: HERBICIDE | C197: Arrow | D197: MANA Crop Protection | E197: GAL | F197: QT | G197: 74.19 | H197: 89.03 | I197: 81.61 | J197: clethodim
A198: 508.5 | B198: HERBICIDE | C198: Arsenal | E198: GAL | F198: QT | G198: 280 | H198: 320 | I198: 300 | J198: imazapyr
A199: 509 | B199: HERBICIDE | C199: Assure II * | D199: DuPont | E199: GAL | F199: OZ | G199: 90.96 | H199: 94.72 | I199: 92.84 | J199: quizalofop-p-ethyl
A200: 510 | B200: HERBICIDE | C200: Atrazine 4L | D200: Various | E200: GAL | F200: QT | G200: 14.25 | H200: 16.24 | I200: 15.25 | J200: atrazine
A201: 511 | B201: HERBICIDE | C201: Authority XL | D201: FMC | E201: LB | F201: OZ | G201: 42.9 | H201: 46 | I201: 44.45 | J201: sulfentrazone
... 399 more rows

Sheet Machinery
A1: SELF-PROPELLED AND DRAWN IMPLEMENTS COST OF OPERATION AND OWNERSHIP
J2: ------ EXCLUDING TRACTOR ----- | O2: ------------- INCLUDING TRACTOR ---------
C3: ESTIMATED | D3: Fuel, Oil, Lube | E3: Repairs | F3: TVC/ | G3: TFC/ | H3: TC/ | I3: HRS/ | J3: TVC/ | K3: TFC/ | L3: TC/ | M3: Fuel, Oil, Lube | N3: Repairs | O3: TVC/ | P3: TFC/ | Q3: TC/
A4: Code | B4: MACHINE | C4: COST | D4: HOUR | E4: HOUR | F4: HOUR | G4: HOUR | H4: HOUR | I4: AC | J4: AC | K4: AC | L4: AC | M4: AC | N4: AC | O4: AC | P4: AC | Q4: AC
A6: SELF-PROPELLED ITEMS (cost per hour)
A7: 1 | B7: TRACTOR 30-40 HP (1) | C7: 22700 | D7: 5.75 | E7: 2.1 | F7: 7.85 | G7: 3.26 | H7: 11.11 | I7: - | J7: - | K7: - | L7: - | M7: - | N7: - | O7: - | P7: - | Q7: -
A8: 2 | B8: TRACTOR 50-60 HP (2) | C8: 34600 | D8: 8.94 | E8: 3.21 | F8: 12.15 | G8: 4.82 | H8: 16.97 | I8: - | J8: - | K8: - | L8: - | M8: - | N8: - | O8: - | P8: - | Q8: -
A9: 3 | B9: TRACTOR 70-80 HP (3) | C9: 48600 | D9: 12.32 | E9: 4.5 | F9: 16.82 | G9: 6.65 | H9: 23.47 | I9: - | J9: - | K9: - | L9: - | M9: - | N9: - | O9: - | P9: - | Q9: -
A10: 4 | B10: TRACTOR 95-105 HP (4) | C10: 76400 | D10: 17.44 | E10: 7.39 | F10: 24.83 | G10: 9.67 | H10: 34.5 | I10: - | J10: - | K10: - | L10: - | M10: - | N10: - | O10: - | P10: - | Q10: -
A11: 5 | B11: TRACTOR 115-125 HP (5) | C11: 92200 | D11: 20.97 | E11: 8.92 | F11: 29.89 | G11: 11.6 | H11: 41.49 | I11: - | J11: - | K11: - | L11: - | M11: - | N11: - | O11: - | P11: - | Q11: -
A12: 6 | B12: TRACTOR 135-155 HP (6) | C12: 134900 | D12: 27.39 | E12: 13.06 | F12: 40.45 | G12: 16.82 | H12: 57.27 | I12: - | J12: - | K12: - | L12: - | M12: - | N12: - | O12: - | P12: - | Q12: -
A13: 7 | B13: TRACTOR 165-195 HP (7) | C13: 154200 | D13: 37.16 | E13: 14.68 | F13: 51.84 | G13: 15.27 | H13: 67.11 | I13: - | J13: - | K13: - | L13: - | M13: - | N13: - | O13: - | P13: - | Q13: -
A14: 8 | B14: TRACTOR 200 - 245 HP (8) | C14: 194900 | D14: 46.7 | E14: 18.56 | F14: 65.26 | G14: 19.21 | H14: 84.47 | I14: - | J14: - | K14: - | L14: - | M14: - | N14: - | O14: - | P14: - | Q14: -
A15: 9 | B15: TRACTOR >250 HP (9) | C15: 228200 | D15: 55.93 | E15: 21.73 | F15: 77.66 | G15: 22.44 | H15: 100.1 | I15: - | J15: - | K15: - | L15: - | M15: - | N15: - | O15: - | P15: - | Q15: -
A16: 11 | B16: TRACTOR 30-40 HP (11) MFWD | C16: 29461 | D16: 6.19 | E16: 2.62 | F16: 8.82 | G16: 3.38 | H16: 12.2 | I16: - | J16: - | K16: - | L16: - | M16: - | N16: - | O16: - | P16: - | Q16: -
A17: 12 | B17: TRACTOR 50-60 HP (12) MFWD | C17: 40176 | D17: 9.23 | E17: 3.58 | F17: 12.81 | G17: 4.52 | H17: 17.33 | I17: - | J17: - | K17: - | L17: - | M17: - | N17: - | O17: - | P17: - | Q17: -
A18: 13 | B18: TRACTOR 70-80 HP (13) MFWD | C18: 57000 | D18: 12.77 | E18: 5.08 | F18: 17.84 | G18: 6.32 | H18: 24.16 | I18: - | J18: - | K18: - | L18: - | M18: - | N18: - | O18: - | P18: - | Q18: -
A19: 14 | B19: TRACTOR 95-105 HP (14) MFWD | C19: 81000 | D19: 17.43 | E19: 7.49 | F19: 24.93 | G19: 8.48 | H19: 33.41 | I19: - | J19: - | K19: - | L19: - | M19: - | N19: - | O19: - | P19: - | Q19: -
A20: 15 | B20: TRACTOR 115-125 HP (15) MFWD | C20: 121200 | D20: 22.9 | E20: 11.21 | F20: 34.11 | G20: 12.56 | H20: 46.67 | I20: - | J20: - | K20: - | L20: - | M20: - | N20: - | O20: - | P20: - | Q20: -
A21: 16 | B21: TRACTOR 135-155 HP (16) MFWD | C21: 152800 | D21: 28.2 | E21: 14.14 | F21: 42.33 | G21: 15.76 | H21: 58.09 | I21: - | J21: - | K21: - | L21: - | M21: - | N21: - | O21: - | P21: - | Q21: -
A22: 17 | B22: TRACTOR 165-195 HP (17) MFWD | C22: 184300 | D22: 28.48 | E22: 17.54 | F22: 46.02 | G22: 18.2 | H22: 64.22 | I22: - | J22: - | K22: - | L22: - | M22: - | N22: - | O22: - | P22: - | Q22: -
A23: 18 | B23: TRACTOR 200 - 245 HP (18) MFWD | C23: 243900 | D23: 36.27 | E23: 23.23 | F23: 59.49 | G23: 23.97 | H23: 83.46 | I23: - | J23: - | K23: - | L23: - | M23: - | N23: - | O23: - | P23: - | Q23: -
A24: 19 | B24: TRACTOR 250-295 HP (19) MFWD | C24: 278000 | D24: 43.33 | E24: 26.47 | F24: 69.8 | G24: 27.27 | H24: 97.07 | I24: - | J24: - | K24: - | L24: - | M24: - | N24: - | O24: - | P24: - | Q24: -
A25: 20 | B25: TRACTOR 300-400 HP (20) MFWD | C25: 336400 | D25: 54.28 | E25: 32.04 | F25: 86.32 | G25: 32.94 | H25: 119.26 | I25: - | J25: - | K25: - | L25: - | M25: - | N25: - | O25: - | P25: - | Q25: -
A26: 25.3 | B26: Pickup Truck (3 gph) | C26: 33500 | D26: 9.98 | E26: 3.43 | F26: 13.41 | G26: 8.69 | H26: 22.1 | I26: - | J26: - | K26: - | L26: - | M26: - | N26: - | O26: - | P26: - | Q26: -
A27: 25.4 | B27: Heavy Duty Diesel Pickup Truck (4 gph) | C27: 44000 | D27: 13.28 | E27: 4.51 | F27: 17.79 | G27: 11.28 | H27: 29.07 | I27: - | J27: - | K27: - | L27: - | M27: - | N27: - | O27: - | P27: - | Q27: -
A28: 25.5 | B28: Full-size Diesel Truck (5 gph) | C28: 52500 | D28: 16.46 | E28: 5.38 | F28: 21.83 | G28: 13.38 | H28: 35.21 | I28: - | J28: - | K28: - | L28: - | M28: - | N28: - | O28: - | P28: - | Q28: -
A29: 27 | B29: Skid-Steer Loader | C29: 30500 | D29: 7.07 | E29: 27.88 | F29: 34.96 | G29: 31.71 | H29: 66.67 | I29: - | J29: - | K29: - | L29: - | M29: - | N29: - | O29: - | P29: - | Q29: -
A30: SELF-PROPELLED ITEMS (cost per acre &/or hour)
A31: 35 | B31: COMBINE (300 HP) | C31: 298000 | D31: 63.22 | E31: 105.02 | F31: 168.24 | G31: 150.45 | H31: 318.69 | I31: - | J31: - | K31: - | L31: - | M31: - | N31: - | O31: - | P31: - | Q31: -
A32: 35.5 | B32: Used COMBINE (225 HP) | C32: 137500 | D32: 63.77 | E32: 38.49 | F32: 102.26 | G32: 56.1 | H32: 158.36 | I32: 0.26 | J32: - | K32: - | L32: - | M32: 16.58 | N32: 10.01 | O32: 26.59 | P32: 14.59 | Q32: 49.98
A33: 36 | B33: COMBINE LARGE (340 HP) | C33: 341000 | D33: 73.06 | E33: 120.17 | F33: 193.23 | G33: 172.14 | H33: 365.37 | I33: - | J33: - | K33: - | L33: - | M33: - | N33: - | O33: - | P33: - | Q33: -
A34: 37 | B34: COMBINE LARGE (340 HP) DC | C34: 341000 | D34: 81.32 | E34: 82.95 | F34: 164.27 | G34: 134.98 | H34: 299.25 | I34: - | J34: - | K34: - | L34: - | M34: - | N34: - | O34: - | P34: - | Q34: -
A35: 37.5 | B35: Used COMBINE LARGE (340 HP) | C35: 190000 | D35: 81.85 | E35: 53.19 | F35: 135.03 | G35: 77.47 | H35: 212.5 | I35: 0.16 | J35: - | K35: - | L35: - | M35: 13.1 | N35: 8.51 | O35: 21.6 | P35: 12.4 | Q35: 43.55
A36: 39 | B36: COMBINE LARGE (440 HP) | C36: 362500 | D36: 84.97 | E36: 127.75 | F36: 212.72 | G36: 182.98 | H36: 395.7 | I36: - | J36: - | K36: - | L36: - | M36: - | N36: - | O36: - | P36: - | Q36: -
A37: 40 | B37: COMBINE LARGE (440 HP) DC | C37: 362500 | D37: 93.75 | E37: 88.18 | F37: 181.93 | G37: 143.48 | H37: 325.41 | I37: - | J37: - | K37: - | L37: - | M37: - | N37: - | O37: - | P37: - | Q37: -
A38: 41 | B38: Forage Harvestor 2-Row KP (300HP) | C38: 272000 | D38: 57.96 | E38: 82.32 | F38: 140.28 | G38: 145.47 | H38: 285.75 | I38: 0.65 | J38: - | K38: - | L38: - | M38: 37.67 | N38: 53.51 | O38: 91.18 | P38: 94.56 | Q38: 156.16
A39: 42 | B39: Forage Harvestor 4-Row KP (400HP) | C39: 334500 | D39: 74.62 | E39: 101.24 | F39: 175.86 | G39: 178.84 | H39: 354.7 | I39: 0.39 | J39: - | K39: - | L39: - | M39: 29.1 | N39: 39.48 | O39: 68.59 | P39: 69.75 | Q39: 107.17
A40: 51 | B40: Used 185HP COTTON PICKER | C40: 275000 | D40: 166.13 | E40: 101.85 | F40: 267.98 | G40: 159.98 | H40: 427.96 | I40: 0.33 | J40: - | K40: - | L40: - | M40: 54.82 | N40: 33.61 | O40: 88.43 | P40: 52.79 | Q40: 144.58
A41: 52 | B41: COTTON PICKER 6-ROW | C41: 534000 | D41: 203.65 | E41: 197.77 | F41: 401.43 | G41: 310.43 | H41: 711.86 | I41: 0.19 | J41: - | K41: - | L41: - | M41: 38.69 | N41: 37.58 | O41: 76.27 | P41: 58.98 | Q41: 143.48
A42: 53 | B42: COTTON STRIPPER | C42: 241300 | D42: 104.94 | E42: 70.93 | F42: 175.87 | G42: 113.58 | H42: 289.45 | I42: 0.25 | J42: - | K42: - | L42: - | M42: 26.24 | N42: 17.73 | O42: 43.97 | P42: 28.4 | Q42: 72.76
A43: 54 | B43: COTTON PICKER/BALER 6-ROW | C43: 834200 | D43: 318.14 | E43: 308.95 | F43: 627.1 | G43: 484.82 | H43: 1111.92 | I43: 0.16 | J43: - | K43: - | L43: - | M43: 50.9 | N43: 49.43 | O43: 100.34 | P43: 77.57 | Q43: 170.83
A44: 61 | B44: TOBACCO COMBINE 1-ROW | C44: 88500 | D44: 29.79 | E44: 26.11 | F44: 55.89 | G44: 58.52 | H44: 114.41 | I44: 1.53 | J44: - | K44: - | L44: - | M44: 45.58 | N44: 39.95 | O44: 85.51 | P44: 89.54 | Q44: 153.65
A45: 62 | B45: TOBACCO COMBINE 2-ROW | C45: 147500 | D45: 49.65 | E45: 43.51 | F45: 93.16 | G45: 97.33 | H45: 190.49 | I45: 0.67 | J45: - | K45: - | L45: - | M45: 33.27 | N45: 29.15 | O45: 62.42 | P45: 65.21 | Q45: 170.72
A46: 71 | B46: VEGETABLE PICKER 1-ROW | C46: 38000 | D46: 17.71 | E46: 8.63 | F46: 26.33 | G46: 15.47 | H46: 41.8 | I46: 2.95 | J46: - | K46: - | L46: - | M46: 52.24 | N46: 25.46 | O46: 77.67 | P46: 45.64 | Q46: 131.66
A47: 72 | B47: VEGETABLE PICKER 4-ROW | C47: 260000 | D47: 124.67 | E47: 31.68 | F47: 156.35 | G47: 89.27 | H47: 245.62 | I47: 0.98 | J47: - | K47: - | L47: - | M47: 122.18 | N47: 31.05 | O47: 153.22 | P47: 87.48 | Q47: 261.08
A48: 76 | B48: Peanut Harvester (215 HP) | C48: 250000 | D48: 116.49 | E48: 56.64 | F48: 173.12 | G48: 100.65 | H48: 273.77 | I48: 0.31 | J48: - | K48: - | L48: - | M48: 36.11 | N48: 17.56 | O48: 53.67 | P48: 31.2 | Q48: 73.46
A49: 81 | B49: HIBOY (100HP - 36FT) | C49: 103000 | D49: 24.34 | E49: 52.47 | F49: 76.81 | G49: 67.82 | H49: 144.63 | I49: 0.05 | J49: - | K49: - | L49: - | M49: 1.22 | N49: 2.62 | O49: 3.84 | P49: 3.39 | Q49: 3.51
A50: 82 | B50: HIBOY (200HP - 60FT) | C50: 162500 | D50: 42.94 | E50: 82.78 | F50: 125.72 | G50: 106.76 | H50: 232.48 | I50: 0.03 | J50: - | K50: - | L50: - | M50: 1.29 | N50: 2.48 | O50: 3.77 | P50: 3.2 | Q50: 3.56
A51: 83 | B51: Self-propelled Sprayer (500 gal. - 80FT) | C51: 185000 | D51: 37.21 | E51: 40.3 | F51: 77.5 | G51: 78.91 | H51: 156.41 | I51: 0.02 | J51: - | K51: - | L51: - | M51: 0.74 | N51: 0.81 | O51: 1.55 | P51: 1.58 | Q51: 2.22
A52: 84 | B52: Self-propelled Sprayer (800 gal.-100FT) GPS | C52: 218200 | D52: 52.7 | E52: 47.53 | F52: 100.23 | G52: 92.98 | H52: 193.21 | I52: 0.01 | J52: - | K52: - | L52: - | M52: 0.53 | N52: 0.48 | O52: 1 | P52: 0.93 | Q52: 1.47
A53: 90 | B53: SP BALE WAGON (170 HP) | C53: 120000 | D53: 56.08 | E53: 22.53 | F53: 78.61 | G53: 36.77 | H53: 115.38 | I53: 0.12 | J53: - | K53: - | L53: - | M53: 6.73 | N53: 2.7 | O53: 9.43 | P53: 4.41 | Q53: 11.02
A55: DRAWN OR ATTACHED IMPLEMENTS
A56: 101.2 | B56: 55HP + Plow 2X-16" | C56: 1100 | E56: 0.52 | F56: 0.52 | G56: 1 | H56: 1.52 | I56: 0.92 | J56: 0.48 | K56: 0.92 | L56: 1.4 | M56: 8.22 | N56: 3.44 | O56: 11.66 | P56: 5.35 | Q56: 21.2
A57: 101.3 | B57: 75HP + Plow 3X-16" | C57: 3125 | E57: 1.49 | F57: 1.49 | G57: 2.27 | H57: 3.76 | I57: 0.57 | J57: 0.85 | K57: 1.29 | L57: 2.14 | M57: 7.02 | N57: 3.42 | O57: 10.44 | P57: 5.08 | Q57: 19.78
A58: 101.4 | B58: 100HP + Plow 4X-16" | C58: 5750 | E58: 2.74 | F58: 2.74 | G58: 3.92 | H58: 6.66 | I58: 0.42 | J58: 1.15 | K58: 1.65 | L58: 2.8 | M58: 7.32 | N58: 4.26 | O58: 11.58 | P58: 5.71 | Q58: 21.93
A59: 101.6 | B59: 145MFWD + Plow 6X-18" Adjustable | C59: 33157.5 | E59: 15.81 | F59: 15.81 | G59: 21.09 | H59: 36.9 | I59: 0.25 | J59: 3.95 | K59: 5.27 | L59: 9.22 | M59: 7.05 | N59: 7.49 | O59: 14.54 | P59: 9.21 | Q59: 31.72
A60: 101.8 | B60: 180MFWD + Plow 8X-18" Adjustable | C60: 41851.5 | E60: 19.95 | F60: 19.95 | G60: 26.53 | H60: 46.48 | I60: 0.19 | J60: 3.79 | K60: 5.04 | L60: 8.83 | M60: 5.41 | N60: 7.12 | O60: 12.53 | P60: 8.5 | Q60: 29.81
A61: 102.3 | B61: 75MFWD + Reversable Plow 3X-18" | C61: 13202 | E61: 6.29 | F61: 6.29 | G61: 8.59 | H61: 14.88 | I61: 0.51 | J61: 3.21 | K61: 4.38 | L61: 7.59 | M61: 6.51 | N61: 5.8 | O61: 12.31 | P61: 7.6 | Q61: 28.4
A62: 102.4 | B62: 100MFWD + Reversable Plow 4X-18" | C62: 14192 | E62: 6.77 | F62: 6.77 | G62: 9.21 | H62: 15.98 | I62: 0.38 | J62: 2.57 | K62: 3.5 | L62: 6.07 | M62: 6.62 | N62: 5.43 | O62: 12.05 | P62: 6.72 | Q62: 25
A63: 102.5 | B63: 120MFWD + Reversable Plow 5X-18" | C63: 17273 | E63: 8.24 | F63: 8.24 | G63: 11.14 | H63: 19.38 | I63: 0.31 | J63: 2.55 | K63: 3.45 | L63: 6 | M63: 7.1 | N63: 6.03 | O63: 13.13 | P63: 7.35 | Q63: 26.65
A64: 102.6 | B64: 145MFWD + Reversable Plow 6X-18" | C64: 19502.5 | E64: 9.3 | F64: 9.3 | G64: 12.53 | H64: 21.83 | I64: 0.25 | J64: 2.33 | K64: 3.13 | L64: 5.46 | M64: 7.05 | N64: 5.86 | O64: 12.91 | P64: 7.07 | Q64: 25.83
A65: 102.8 | B65: 180MFWD + Reversable Plow 8X-18" | C65: 21051 | E65: 10.04 | F65: 10.04 | G65: 13.5 | H65: 23.54 | I65: 0.19 | J65: 1.91 | K65: 2.57 | L65: 4.48 | M65: 5.41 | N65: 5.24 | O65: 10.65 | P65: 6.02 | Q65: 22.98
A66: 103.1 | B66: 100MFWD + Chisel Plow 8FT | C66: 8524.25 | E66: 3.39 | F66: 3.39 | G66: 4.77 | H66: 8.16 | I66: 0.24 | J66: 0.81 | K66: 1.14 | L66: 1.95 | M66: 4.18 | N66: 2.62 | O66: 6.8 | P66: 3.18 | Q66: 12.73
A67: 103.2 | B67: 120MFWD + Chisel Plow 10FT | C67: 10959.75 | E67: 4.35 | F67: 4.35 | G67: 6.04 | H67: 10.39 | I67: 0.16 | J67: 0.7 | K67: 0.97 | L67: 1.67 | M67: 3.66 | N67: 2.49 | O67: 6.15 | P67: 2.98 | Q67: 11.4
A68: 103.3 | B68: 145MFWD + Chisel Plow 12FT | C68: 13395.25 | E68: 5.32 | F68: 5.32 | G68: 7.31 | H68: 12.63 | I68: 0.12 | J68: 0.64 | K68: 0.88 | L68: 1.52 | M68: 3.38 | N68: 2.34 | O68: 5.72 | P68: 2.77 | Q68: 10.57
A69: 103.4 | B69: 180MFWD + Chisel Plow 16FT | C69: 18266.25 | E69: 7.26 | F69: 7.26 | G69: 9.85 | H69: 17.11 | I69: 0.1 | J69: 0.73 | K69: 0.99 | L69: 1.72 | M69: 2.85 | N69: 2.48 | O69: 5.33 | P69: 2.81 | Q69: 10.98
A70: 104.1 | B70: 225MFWD + Folding Chisel Plow 20FT | C70: 40313.25 | E70: 16.02 | F70: 16.02 | G70: 21.36 | H70: 37.38 | I70: 0.15 | J70: 2.4 | K70: 3.2 | L70: 5.6 | M70: 5.44 | N70: 5.89 | O70: 11.33 | P70: 6.8 | Q70: 24.77
A71: 104.2 | B71: 275MFWD + Folding Chisel Plow 24FT | C71: 48800.25 | E71: 19.39 | F71: 19.39 | G71: 25.79 | H71: 45.18 | I71: 0.1 | J71: 1.94 | K71: 2.58 | L71: 4.52 | M71: 4.33 | N71: 4.59 | O71: 8.92 | P71: 5.31 | Q71: 19.57
A72: 104.3 | B72: 350MFWD + Folding Chisel Plow 32FT | C72: 65774.25 | E72: 26.13 | F72: 26.13 | G72: 34.65 | H72: 60.78 | I72: 0.08 | J72: 2.09 | K72: 2.77 | L72: 4.86 | M72: 4.34 | N72: 4.66 | O72: 9 | P72: 5.41 | Q72: 19.94
A73: 106 | B73: 100HP + Cultipacker - 13 FT | C73: 9138.5 | E73: 7.19 | F73: 7.19 | G73: 6.5 | H73: 13.69 | I73: 0.2 | J73: 1.44 | K73: 1.3 | L73: 2.74 | M73: 3.49 | N73: 2.91 | O73: 6.4 | P73: 3.23 | Q73: 11.61
A74: 107 | B74: 145MFWD+ Seedbed Finisher 20FT | C74: 14120.5 | E74: 4.99 | F74: 4.99 | G74: 6.69 | H74: 11.68 | I74: 0.11 | J74: 0.55 | K74: 0.74 | L74: 1.29 | M74: 3.1 | N74: 2.11 | O74: 5.21 | P74: 2.47 | Q74: 11.08
A75: 108.1 | B75: 75HP + Offset Disk 7 FT | C75: 8721 | E75: 3.32 | F75: 3.32 | G75: 5.13 | H75: 8.45 | I75: 0.31 | J75: 1.03 | K75: 1.59 | L75: 2.62 | M75: 3.82 | N75: 2.42 | O75: 6.24 | P75: 3.65 | Q75: 12.71
A76: 108.2 | B76: 120MFWD + Offset Disk 12 FT | C76: 29121 | E76: 11.09 | F76: 11.09 | G76: 16.51 | H76: 27.6 | I76: 0.18 | J76: 2 | K76: 2.97 | L76: 4.97 | M76: 3.14 | N76: 3.34 | O76: 6.48 | P76: 4.5 | Q76: 14.48
A77: 108.3 | B77: 180MFWD + Offset Disk 16 FT | C77: 37841 | E77: 14.42 | F77: 14.42 | G77: 21.37 | H77: 35.79 | I77: 0.13 | J77: 1.87 | K77: 2.78 | L77: 4.65 | M77: 3.7 | N77: 4.16 | O77: 7.86 | P77: 5.14 | Q77: 17.61
A78: 109.1 | B78: 55HP + Tandem Disk Harrow 8FT Rigid | C78: 6955.5 | E78: 2.65 | F78: 2.65 | G78: 4.14 | H78: 6.79 | I78: 0.27 | J78: 0.72 | K78: 1.12 | L78: 1.84 | M78: 2.41 | N78: 1.59 | O78: 4 | P78: 2.42 | Q78: 8.23
A79: 109.2 | B79: 75HP + Tandem Disk Harrow 11FT Rigid | C79: 12447.5 | E79: 4.74 | F79: 4.74 | G79: 7.2 | H79: 11.94 | I79: 0.2 | J79: 0.95 | K79: 1.44 | L79: 2.39 | M79: 2.46 | N79: 1.85 | O79: 4.31 | P79: 2.77 | Q79: 9.2
A80: 109.3 | B80: 120HP + Tandem Disk Harrow 15FT Rigid | C80: 16385 | E80: 6.24 | F80: 6.24 | G80: 9.4 | H80: 15.64 | I80: 0.14 | J80: 0.87 | K80: 1.32 | L80: 2.19 | M80: 2.94 | N80: 2.12 | O80: 5.06 | P80: 2.94 | Q80: 10.21
A81: 109.4 | B81: 120HP + Tandem Disk Harrow 15FT Rigid | C81: 16385 | E81: 6.24 | F81: 6.24 | G81: 9.4 | H81: 15.64 | I81: 0.14 | J81: 0.87 | K81: 1.32 | L81: 2.19 | M81: 2.94 | N81: 2.12 | O81: 5.06 | P81: 2.94 | Q81: 10.21
A82: 110 | B82: 100HP + Perfecta Cultivator 15FT Rigid | C82: 22500 | E82: 8.57 | F82: 8.57 | G82: 12.81 | H82: 21.38 | I82: 0.14 | J82: 1.2 | K82: 1.79 | L82: 2.99 | M82: 2.44 | N82: 2.24 | O82: 4.68 | P82: 3.15 | Q82: 10.16
A83: 111.1 | B83: 180MFWD + Heavy Disk 18 FT | C83: 72673.5 | E83: 27.68 | F83: 27.68 | G83: 40.8 | H83: 68.48 | I83: 0.27 | J83: 7.47 | K83: 11.02 | L83: 18.49 | M83: 7.69 | N83: 12.21 | O83: 19.9 | P83: 15.93 | Q83: 49.25
A84: 111.2 | B84: 225MFWD + Heavy Disk 24 FT | C84: 78355.5 | E84: 29.85 | F84: 29.85 | G84: 43.97 | H84: 73.82 | I84: 0.18 | J84: 5.37 | K84: 7.91 | L84: 13.28 | M84: 6.53 | N84: 9.55 | O84: 16.08 | P84: 12.23 | Q84: 38.68
A85: 111.3 | B85: 275MFWD + Heavy Disk 28 FT | C85: 103086 | E85: 39.27 | F85: 39.27 | G85: 57.76 | H85: 97.03 | I85: 0.13 | J85: 5.11 | K85: 7.51 | L85: 12.62 | M85: 5.63 | N85: 8.55 | O85: 14.18 | P85: 11.05 | Q85: 34.71
A86: 111.4 | B86: 350MFWD + Heavy Disk 32 FT | C86: 105595.5 | E86: 40.23 | F86: 40.23 | G86: 59.16 | H86: 99.39 | I86: 0.09 | J86: 3.62 | K86: 5.32 | L86: 8.94 | M86: 4.89 | N86: 6.5 | O86: 11.39 | P86: 8.29 | Q86: 27.05
A87: 112 | B87: 55HP + Rotovator - 5 FT | C87: 7250 | E87: 4.54 | F87: 4.54 | G87: 7.63 | H87: 12.17 | I87: 1.27 | J87: 5.77 | K87: 9.69 | L87: 15.46 | M87: 11.35 | N87: 9.85 | O87: 21.2 | P87: 15.81 | Q87: 47.17
A88: 113 | B88: 55HP + Offset Disk Harrow 9 FT | C88: 10825 | E88: 6.37 | F88: 6.37 | G88: 8.5 | H88: 14.87 | I88: 0.31 | J88: 1.97 | K88: 2.64 | L88: 4.61 | M88: 2.77 | N88: 2.97 | O88: 5.74 | P88: 4.13 | Q88: 12.45
A89: 113.5 | B89: 75HP + Offset Disk Harrow 9 FT | C89: 10825 | E89: 6.37 | F89: 6.37 | G89: 8.5 | H89: 14.87 | I89: 0.31 | J89: 1.97 | K89: 2.64 | L89: 4.61 | M89: 3.82 | N89: 3.37 | O89: 7.19 | P89: 4.7 | Q89: 14.97
A90: 114 | B90: 100MFWD + Rotary Hoe 21 FT | C90: 14250 | E90: 6.51 | F90: 6.51 | G90: 9.8 | H90: 16.31 | I90: 0.06 | J90: 0.39 | K90: 0.59 | L90: 0.98 | M90: 1.05 | N90: 0.84 | O90: 1.89 | P90: 1.1 | Q90: 3.8
A91: 114.5 | B91: 140MFWD + Rotary Harrow 30 FT | C91: 26950 | E91: 12.32 | F91: 12.32 | G91: 18.3 | H91: 30.62 | I91: 0.04 | J91: 0.49 | K91: 0.73 | L91: 1.22 | M91: 1.13 | N91: 1.06 | O91: 2.19 | P91: 1.36 | Q91: 4.44
A92: 115 | B92: 140MFWD + Rotary Harrow 30 FT | C92: 26950 | E92: 12.32 | F92: 12.32 | G92: 18.3 | H92: 30.62 | I92: 0.04 | J92: 0.49 | K92: 0.73 | L92: 1.22 | M92: 1.13 | N92: 1.06 | O92: 2.19 | P92: 1.36 | Q92: 4.44
A93: 153 | B93: 75MFWD + Fertilizer Spreader | C93: 10750 | E93: 10.52 | F93: 10.52 | G93: 15.56 | H93: 26.08 | I93: 0.12 | J93: 1.26 | K93: 1.87 | L93: 3.13 | M93: 1.53 | N93: 1.87 | O93: 3.4 | P93: 2.63 | Q93: 7.9
A94: 154 | B94: 75MFWD + Fumigation Unit | C94: 6331 | E94: 6.4 | F94: 6.4 | G94: 10.72 | H94: 17.12 | I94: 0.43 | J94: 2.75 | K94: 4.61 | L94: 7.36 | M94: 5.49 | N94: 4.93 | O94: 10.42 | P94: 7.33 | Q94: 23.05
A95: 161 | B95: 100MFWD + Strip-Till Rig 4R | C95: 13465.5 | E95: 5.13 | F95: 5.13 | G95: 7.77 | H95: 12.9 | I95: 0.22 | J95: 1.13 | K95: 1.71 | L95: 2.84 | M95: 3.83 | N95: 2.78 | O95: 6.61 | P95: 3.58 | Q95: 13.06
A96: 161.5 | B96: 145MFWD + Strip-Till Rig 6R | C96: 19301.5 | E96: 7.35 | F96: 7.35 | G96: 11.03 | H96: 18.38 | I96: 0.14 | J96: 1.03 | K96: 1.54 | L96: 2.57 | M96: 3.95 | N96: 3.01 | O96: 6.96 | P96: 3.75 | Q96: 13.37
A97: 162 | B97: 180MFWD + Strip-Till Rig 8R | C97: 20539.5 | E97: 7.82 | F97: 7.82 | G97: 11.72 | H97: 19.54 | I97: 0.11 | J97: 0.86 | K97: 1.29 | L97: 2.15 | M97: 3.13 | N97: 2.79 | O97: 5.92 | P97: 3.29 | Q97: 12.35
A98: 163 | B98: 275MFWD + Strip-Till Rig 12R | C98: 28175 | E98: 10.73 | F98: 10.73 | G98: 15.98 | H98: 26.71 | I98: 0.07 | J98: 0.75 | K98: 1.12 | L98: 1.87 | M98: 2.54 | N98: 2.38 | O98: 4.92 | P98: 2.8 | Q98: 13.26
A99: 200.1 | B99: 75HP + Grain Drill 10 FT - 10" | C99: 17214 | E99: 11.34 | F99: 11.34 | G99: 12.95 | H99: 24.29 | I99: 0.23 | J99: 2.61 | K99: 2.98 | L99: 5.59 | M99: 2.83 | N99: 3.65 | O99: 6.48 | P99: 4.51 | Q99: 14.93
A100: 200.2 | B100: 100HP + Grain Drill 15 FT - 10" | C100: 19976 | E100: 13.16 | F100: 13.16 | G100: 14.97 | H100: 28.13 | I100: 0.15 | J100: 1.97 | K100: 2.25 | L100: 4.22 | M100: 2.62 | N100: 3.08 | O100: 5.7 | P100: 3.7 | Q100: 12.55
A101: 200.4 | B101: 100HP + Grain Drill 15 FT - 7.5" | C101: 23838.5 | E101: 15.7 | F101: 15.7 | G101: 17.79 | H101: 33.49 | I101: 0.15 | J101: 2.36 | K101: 2.67 | L101: 5.03 | M101: 2.62 | N101: 3.46 | O101: 6.08 | P101: 4.12 | Q101: 13.75
A102: 200.6 | B102: 145MFWD + Grain Drill 20 FT - 7.50" | C102: 30151 | E102: 19.86 | F102: 19.86 | G102: 22.4 | H102: 42.26 | I102: 0.11 | J102: 2.18 | K102: 2.46 | L102: 4.64 | M102: 2.52 | N102: 3.42 | O102: 5.94 | P102: 3.85 | Q102: 13.04
A103: 200.8 | B103: 145MFWD + Grain Drill 20 FT - 6" | C103: 34896.5 | E103: 22.98 | F103: 22.98 | G103: 25.87 | H103: 48.85 | I103: 0.11 | J103: 2.53 | K103: 2.85 | L103: 5.38 | M103: 2.52 | N103: 3.76 | O103: 6.28 | P103: 4.23 | Q103: 14.13
A104: 205.4 | B104: 75MFWD + Mulch Bedder-Layer 4FT Center | C104: 5550 | E104: 5.36 | F104: 5.36 | G104: 8.37 | H104: 13.73 | I104: 0.65 | J104: 3.48 | K104: 5.44 | L104: 8.92 | M104: 8.3 | N104: 6.78 | O104: 15.08 | P104: 9.55 | Q104: 31.2
A105: 205.5 | B105: 75MFWD + Mulch Bedder-Layer 5FT Center | C105: 5550 | E105: 5.36 | F105: 5.36 | G105: 8.37 | H105: 13.73 | I105: 0.52 | J105: 2.79 | K105: 4.35 | L105: 7.14 | M105: 6.64 | N105: 5.42 | O105: 12.06 | P105: 7.64 | Q105: 24.96
A106: 205.6 | B106: 75MFWD + Mulch Bedder-Layer 6FT Center | C106: 5550 | E106: 5.36 | F106: 5.36 | G106: 8.37 | H106: 13.73 | I106: 0.44 | J106: 2.36 | K106: 3.68 | L106: 6.04 | M106: 5.62 | N106: 4.59 | O106: 10.21 | P106: 6.46 | Q106: 21.12
A107: 205.8 | B107: 75MFWD + Mulch Bedder-Layer 8FT Center | C107: 5550 | E107: 5.36 | F107: 5.36 | G107: 8.37 | H107: 13.73 | I107: 0.33 | J107: 1.77 | K107: 2.76 | L107: 4.53 | M107: 4.21 | N107: 3.45 | O107: 7.66 | P107: 4.85 | Q107: 15.84
A108: 206 | B108: 180MFWD + Mulch Bedder-Layer 3R 6FT | C108: 16350 | E108: 15.8 | F108: 15.8 | G108: 24 | H108: 39.8 | I108: 0.15 | J108: 2.37 | K108: 3.6 | L108: 5.97 | M108: 3.44 | N108: 4.05 | O108: 7.49 | P108: 5.48 | Q108: 15.11
A109: 207 | B109: 75MFWD + No-till Drill 10 FT | C109: 38161.5 | E109: 25.13 | F109: 25.13 | G109: 28.26 | H109: 53.39 | I109: 0.26 | J109: 6.53 | K109: 7.35 | L109: 13.88 | M109: 3.32 | N109: 7.85 | O109: 11.17 | P109: 8.99 | Q109: 28.16
A110: 207.5 | B110: 120MFWD + No-till Drill 15 FT | C110: 54152.5 | E110: 35.66 | F110: 35.66 | G110: 39.95 | H110: 75.61 | I110: 0.17 | J110: 6.06 | K110: 6.79 | L110: 12.85 | M110: 3.89 | N110: 7.97 | O110: 11.86 | P110: 8.93 | Q110: 27.75
A111: 207.8 | B111: 180MFWD + No-till Drill 20 FT | C111: 73471.5 | E111: 48.38 | F111: 48.38 | G111: 54.07 | H111: 102.45 | I111: 0.13 | J111: 6.29 | K111: 7.03 | L111: 13.32 | M111: 3.7 | N111: 8.57 | O111: 12.27 | P111: 9.4 | Q111: 30.78
A112: 209.2 | B112: 55HP + Precision Vacuum Seeder 2R | C112: 8692.5 | E112: 4.34 | F112: 4.34 | G112: 5.41 | H112: 9.75 | I112: 0.46 | J112: 2 | K112: 2.49 | L112: 4.49 | M112: 4.11 | N112: 3.48 | O112: 7.59 | P112: 4.71 | Q112: 17.47
A113: 209.4 | B113: 100HP + Precision Vacuum Seeder 4R | C113: 17205 | E113: 8.58 | F113: 8.58 | G113: 10.33 | H113: 18.91 | I113: 0.2 | J113: 1.72 | K113: 2.07 | L113: 3.79 | M113: 3.49 | N113: 3.19 | O113: 6.68 | P113: 4 | Q113: 15.12
A114: 210 | B114: 35HP + Planter 1-Row-48 | C114: 7000 | E114: 4.75 | F114: 4.75 | G114: 6.51 | H114: 11.26 | I114: 1.65 | J114: 7.84 | K114: 10.74 | L114: 18.58 | M114: 9.49 | N114: 11.3 | O114: 20.79 | P114: 16.12 | Q114: 46.45
A115: 211 | B115: 55HP + Planter 2-Row-36 | C115: 14000 | E115: 9.51 | F115: 9.51 | G115: 12.62 | H115: 22.13 | I115: 0.89 | J115: 8.46 | K115: 11.23 | L115: 19.69 | M115: 7.96 | N115: 11.32 | O115: 19.28 | P115: 15.52 | Q115: 44.6
A116: 212.4 | B116: 75HP + Planter 4-Row-30 | C116: 23265.5 | E116: 11.6 | F116: 11.6 | G116: 13.84 | H116: 25.44 | I116: 0.27 | J116: 3.13 | K116: 3.74 | L116: 6.87 | M116: 3.33 | N116: 4.34 | O116: 7.67 | P116: 5.53 | Q116: 20.07
A117: 212.6 | B117: 100HP + Planter 6-Row-30 | C117: 31991 | E117: 15.96 | F117: 15.96 | G117: 18.88 | H117: 34.84 | I117: 0.18 | J117: 2.87 | K117: 3.4 | L117: 6.27 | M117: 3.14 | N117: 4.2 | O117: 7.34 | P117: 5.14 | Q117: 18.76
A118: 212.8 | B118: 120MFWD + Planter 8-Row-30 | C118: 37902 | E118: 18.9 | F118: 18.9 | G118: 22.3 | H118: 41.2 | I118: 0.15 | J118: 2.84 | K118: 3.35 | L118: 6.19 | M118: 3.44 | N118: 4.51 | O118: 7.95 | P118: 5.23 | Q118: 19.43
A119: 212.9 | B119: 145MFWD + Planter 12-Row-30 | C119: 53804.5 | E119: 26.84 | F119: 26.84 | G119: 31.51 | H119: 58.35 | I119: 0.1 | J119: 2.68 | K119: 3.15 | L119: 5.83 | M119: 2.82 | N119: 4.1 | O119: 6.92 | P119: 4.73 | Q119: 17.38
A120: 214.5 | B120: 180MFWD + No-till 12/23 Split-Row Planter | C120: 116483 | E120: 58.1 | F120: 58.1 | G120: 67.77 | H120: 125.87 | I120: 0.17 | J120: 9.88 | K120: 11.52 | L120: 21.4 | M120: 4.84 | N120: 12.86 | O120: 17.7 | P120: 14.61 | Q120: 52.73
A121: 215.4 | B121: 75HP + Planter No-till 4-Row | C121: 30089.5 | E121: 15.01 | F121: 15.01 | G121: 17.78 | H121: 32.79 | I121: 0.24 | J121: 3.6 | K121: 4.27 | L121: 7.87 | M121: 2.96 | N121: 4.68 | O121: 7.64 | P121: 5.86 | Q121: 21.01
A122: 215.6 | B122: 100MFWD + Planter No-till 6-Row | C122: 37109 | E122: 18.51 | F122: 18.51 | G122: 21.85 | H122: 40.36 | I122: 0.19 | J122: 3.52 | K122: 4.15 | L122: 7.67 | M122: 3.31 | N122: 4.94 | O122: 8.25 | P122: 5.76 | Q122: 21.49
A123: 215.8 | B123: 145MFWD + Planter No-till 8-Row | C123: 44726 | E123: 22.31 | F123: 22.31 | G123: 26.25 | H123: 48.56 | I123: 0.16 | J123: 3.57 | K123: 4.2 | L123: 7.77 | M123: 3.66 | N123: 5.37 | O123: 9.03 | P123: 6.21 | Q123: 22.84
A124: 215.9 | B124: 180MFWD + Planter No-till 12-Row | C124: 64040.5 | E124: 31.94 | F124: 31.94 | G124: 37.43 | H124: 69.37 | I124: 0.1 | J124: 3.19 | K124: 3.74 | L124: 6.93 | M124: 2.85 | N124: 4.95 | O124: 7.8 | P124: 5.56 | Q124: 20.86
A125: 218.4 | B125: 100MFWD + Planter No-till W/ Sprayer 4R | C125: 31372 | E125: 15.65 | F125: 15.65 | G125: 18.53 | H125: 34.18 | I125: 0.28 | J125: 4.38 | K125: 5.19 | L125: 9.57 | M125: 4.88 | N125: 6.48 | O125: 11.36 | P125: 7.56 | Q125: 28.56
A126: 218.6 | B126: 120MFWD + Planter No-till W/ Sprayer 6R | C126: 38781.5 | E126: 19.34 | F126: 19.34 | G126: 22.81 | H126: 42.15 | I126: 0.18 | J126: 3.48 | K126: 4.11 | L126: 7.59 | M126: 4.12 | N126: 5.5 | O126: 9.62 | P126: 6.37 | Q126: 23.62
A127: 218.8 | B127: 180MFWD + Planter No-till W/ Sprayer 8R | C127: 65133.5 | E127: 32.49 | F127: 32.49 | G127: 38.06 | H127: 70.55 | I127: 0.14 | J127: 4.55 | K127: 5.33 | L127: 9.88 | M127: 2.44 | N127: 5.6 | O127: 8.04 | P127: 6.52 | Q127: 23.43
A128: 218.9 | B128: 225MFWD + Planter No-till W/ Sprayer 12R | C128: 56902 | E128: 28.38 | F128: 28.38 | G128: 33.3 | H128: 61.68 | I128: 0.09 | J128: 2.55 | K128: 3 | L128: 5.55 | M128: 3.26 | N128: 4.65 | O128: 7.91 | P128: 5.15 | Q128: 19.77
A129: 222.4 | B129: 100HP + Planter W/ Sprayer 4R | C129: 20090 | E129: 10.02 | F129: 10.02 | G129: 12 | H129: 22.02 | I129: 0.27 | J129: 2.71 | K129: 3.24 | L129: 5.95 | M129: 4.71 | N129: 4.7 | O129: 9.41 | P129: 5.85 | Q129: 21.92
A130: 222.6 | B130: 120MFWD + Planter W/ Sprayer 6R | C130: 29700 | E130: 14.81 | F130: 14.81 | G130: 17.56 | H130: 32.37 | I130: 0.18 | J130: 2.67 | K130: 3.16 | L130: 5.83 | M130: 3.77 | N130: 4.28 | O130: 8.05 | P130: 5.25 | Q130: 19.51
A131: 222.8 | B131: 145MFWD + Planter W/ Sprayer 8R | C131: 38100 | E131: 19 | F131: 19 | G131: 22.42 | H131: 41.42 | I131: 0.15 | J131: 2.85 | K131: 3.36 | L131: 6.21 | M131: 4.27 | N131: 5.48 | O131: 9.75 | P131: 6.09 | Q131: 23.76
A132: 222.9 | B132: 225MFWD + Planter W/ Sprayer 12R | C132: 54950 | E132: 27.41 | F132: 27.41 | G132: 32.17 | H132: 59.58 | I132: 0.09 | J132: 2.47 | K132: 2.9 | L132: 5.37 | M132: 3.26 | N132: 4.56 | O132: 7.82 | P132: 5.05 | Q132: 19.43
A133: 225.2 | B133: 75MFWD + Ripper-Bedder 2R | C133: 6400 | E133: 2.03 | F133: 2.03 | G133: 2.99 | H133: 5.02 | I133: 0.32 | J133: 0.65 | K133: 0.96 | L133: 1.61 | M133: 4.09 | N133: 2.27 | O133: 6.36 | P133: 2.98 | Q133: 13.79
A134: 225.4 | B134: 145MFWD + Ripper-Bedder 4R | C134: 14625 | E134: 4.65 | F134: 4.65 | G134: 6.42 | H134: 11.07 | I134: 0.17 | J134: 0.79 | K134: 1.09 | L134: 1.88 | M134: 4.79 | N134: 3.2 | O134: 7.99 | P134: 3.77 | Q134: 15.8
A135: 227.4 | B135: 275MFWD + Ripper Bedder 8R | C135: 29250 | E135: 13.95 | F135: 13.95 | G135: 18.64 | H135: 32.59 | I135: 0.12 | J135: 1.67 | K135: 2.24 | L135: 3.91 | M135: 5.2 | N135: 4.85 | O135: 10.05 | P135: 5.51 | Q135: 20.77
A136: 227.8 | B136: 275MFWD + Ripper Bedder 8R | C136: 29250 | E136: 13.95 | F136: 13.95 | G136: 18.64 | H136: 32.59 | I136: 0.12 | J136: 1.67 | K136: 2.24 | L136: 3.91 | M136: 5.2 | N136: 4.85 | O136: 10.05 | P136: 5.51 | Q136: 20.77
A137: 228.6 | B137: 180MFWD + Subsoiler-NT Planter 6R | C137: 43739 | E137: 20.85 | F137: 20.85 | G137: 27.72 | H137: 48.57 | I137: 0.16 | J137: 3.34 | K137: 4.44 | L137: 7.78 | M137: 4.56 | N137: 6.14 | O137: 10.7 | P137: 7.35 | Q137: 25.63
A138: 228.8 | B138: 180MFWD + Subsoiler-NT Planter 8R | C138: 53566 | E138: 25.54 | F138: 25.54 | G138: 33.87 | H138: 59.41 | I138: 0.12 | J138: 3.06 | K138: 4.06 | L138: 7.12 | M138: 4.35 | N138: 5.85 | O138: 10.2 | P138: 6.94 | Q138: 24.24
A139: 228.9 | B139: 225MFWD + Subsoiler-NT Planter 12R | C139: 77300.5 | E139: 36.86 | F139: 36.86 | G139: 48.74 | H139: 85.6 | I139: 0.08 | J139: 2.95 | K139: 3.9 | L139: 6.85 | M139: 3.47 | N139: 5.06 | O139: 8.53 | P139: 6.08 | Q139: 20.95
A140: 229.4 | B140: 145MFWD+Subsoiler-Planter W/Spray 4R | C140: 24510 | E140: 11.69 | F140: 11.69 | G140: 15.67 | H140: 27.36 | I140: 0.24 | J140: 2.81 | K140: 3.76 | L140: 6.57 | M140: 6.77 | N140: 6.19 | O140: 12.96 | P140: 7.54 | Q140: 26.86
A141: 229.6 | B141: 225MFWD+Subsoiler-Planter W/Spray 6R | C141: 36330 | E141: 17.32 | F141: 17.32 | G141: 23.07 | H141: 40.39 | I141: 0.16 | J141: 2.77 | K141: 3.69 | L141: 6.46 | M141: 4.56 | N141: 5.57 | O141: 10.13 | P141: 6.6 | Q141: 23.58
A142: 229.8 | B142: 275MFWD+Subsoiler-Planter W/Spray 8R | C142: 46940 | E142: 22.38 | F142: 22.38 | G142: 29.72 | H142: 52.1 | I142: 0.12 | J142: 2.69 | K142: 3.57 | L142: 6.26 | M142: 3.42 | N142: 4.79 | O142: 8.21 | P142: 5.75 | Q142: 19.89
A143: 229.9 | B143: 350MFWD+Subsoiler-Planter W/Spray 12R | C143: 68210 | E143: 32.52 | F143: 32.52 | G143: 43.05 | H143: 75.57 | I143: 0.08 | J143: 2.6 | K143: 3.44 | L143: 6.04 | M143: 2.9 | N143: 4.46 | O143: 7.36 | P143: 5.36 | Q143: 18.18
A144: 232 | B144: 75HP + Super Bedder 1-ROW | C144: 3200 | E144: 3.09 | F144: 3.09 | G144: 4.97 | H144: 8.06 | I144: 1.1 | J144: 3.4 | K144: 5.47 | L144: 8.87 | M144: 13.55 | N144: 8.35 | O144: 21.9 | P144: 12.78 | Q144: 41.81
A145: 232.5 | B145: 75HP + Power Bedder 1-ROW | C145: 9200 | E145: 8.89 | F145: 8.89 | G145: 13.65 | H145: 22.54 | I145: 1.1 | J145: 9.78 | K145: 15.02 | L145: 24.8 | M145: 13.55 | N145: 14.73 | O145: 28.28 | P145: 22.33 | Q145: 59.81
A146: 233 | B146: 75HP + Tomato Transplanter 3R | C146: 8250 | E146: 5.6 | F146: 5.6 | G146: 7.6 | H146: 13.2 | I146: 0.69 | J146: 3.86 | K146: 5.24 | L146: 9.1 | M146: 8.5 | N146: 6.97 | O146: 15.47 | P146: 9.83 | Q146: 31.98
A147: 233.5 | B147: 75HP + Transplanter Triple Row | C147: 5150 | E147: 3.5 | F147: 3.5 | G147: 4.9 | H147: 8.4 | I147: 2.75 | J147: 9.63 | K147: 13.48 | L147: 23.11 | M147: 33.88 | N147: 22 | O147: 55.88 | P147: 31.76 | Q147: 109.83
A148: 234 | B148: 35HP + Transplanter 1-Row | C148: 1900 | E148: 1.29 | F148: 1.29 | G148: 2.06 | H148: 3.35 | I148: 2.2 | J148: 2.84 | K148: 4.53 | L148: 7.37 | M148: 12.65 | N148: 7.46 | O148: 20.11 | P148: 11.7 | Q148: 38.72
A149: 235 | B149: 55HP + Transplanter 2-Row | C149: 3250 | E149: 2.21 | F149: 2.21 | G149: 3.24 | H149: 5.45 | I149: 1.38 | J149: 3.05 | K149: 4.47 | L149: 7.52 | M149: 12.34 | N149: 7.48 | O149: 19.82 | P149: 11.12 | Q149: 38.46
A150: 236 | B150: 75HP + Transplanter 4-Row | C150: 10250 | E150: 5.22 | F150: 5.22 | G150: 7.11 | H150: 12.33 | I150: 0.83 | J150: 4.33 | K150: 5.9 | L150: 10.23 | M150: 10.23 | N150: 8.06 | O150: 18.29 | P150: 11.42 | Q150: 40.24
A151: 237 | B151: 55HP + Water Wheel transplanter 1R | C151: 2500 | E151: 1.7 | F151: 1.7 | G151: 2.59 | H151: 4.29 | I151: 2.06 | J151: 3.5 | K151: 5.34 | L151: 8.84 | M151: 18.42 | N151: 10.11 | O151: 28.53 | P151: 15.26 | Q151: 54.22
A152: 240 | B152: 145MFWD Spin Spreader 5-Ton | C152: 10900 | E152: 10.67 | F152: 10.67 | G152: 15.78 | H152: 26.45 | I152: 0.09 | J152: 0.96 | K152: 1.42 | L152: 2.38 | M152: 2.06 | N152: 1.97 | O152: 4.03 | P152: 2.55 | Q152: 8.06
A153: 251 | B153: 35HP + Cultivator 1-Row | C153: 3000 | E153: 1.41 | F153: 1.41 | G153: 2.57 | H153: 3.98 | I153: 1.18 | J153: 1.66 | K153: 3.03 | L153: 4.69 | M153: 6.79 | N153: 4.14 | O153: 10.93 | P153: 6.88 | Q153: 21.89
A154: 251.2 | B154: 55HP + Cultivator 2-Row | C154: 4350 | E154: 2.04 | F154: 2.04 | G154: 3.6 | H154: 5.64 | I154: 0.42 | J154: 0.86 | K154: 1.51 | L154: 2.37 | M154: 3.75 | N154: 2.21 | O154: 5.96 | P154: 3.54 | Q154: 11.85
A155: 251.4 | B155: 100HP + Cultivator 4-Row | C155: 10800 | E155: 4.77 | F155: 4.77 | G155: 6.41 | H155: 11.18 | I155: 0.23 | J155: 1.1 | K155: 1.47 | L155: 2.57 | M155: 4.01 | N155: 2.8 | O155: 6.81 | P155: 3.7 | Q155: 13.82
A156: 251.5 | B156: 120HP + Cultivator 4-Row | C156: 10800 | E156: 4.77 | F156: 4.77 | G156: 6.41 | H156: 11.18 | I156: 0.23 | J156: 1.1 | K156: 1.47 | L156: 2.57 | M156: 4.82 | N156: 3.15 | O156: 7.97 | P156: 4.14 | Q156: 15.8
A157: 251.6 | B157: 145MFWD + Cultivator 6-Row | C157: 21118 | E157: 7.46 | F157: 7.46 | G157: 9.9 | H157: 17.36 | I157: 0.18 | J157: 1.34 | K157: 1.78 | L157: 3.12 | M157: 5.08 | N157: 3.88 | O157: 8.96 | P157: 4.62 | Q157: 18.76
A158: 251.8 | B158: 180MFWD + Cultivator 8-Row | C158: 19900 | E158: 7.03 | F158: 7.03 | G158: 9.35 | H158: 16.38 | I158: 0.14 | J158: 0.98 | K158: 1.31 | L158: 2.29 | M158: 5.08 | N158: 4.23 | O158: 9.31 | P158: 4.66 | Q158: 19.89
A159: 251.9 | B159: 200MFWD + Cultivator 12-Row | C159: 34800 | E159: 12.29 | F159: 12.29 | G159: 16.18 | H159: 28.47 | I159: 0.09 | J159: 1.11 | K159: 1.46 | L159: 2.57 | M159: 3.9 | N159: 3.49 | O159: 7.39 | P159: 3.91 | Q159: 16.68
A160: 255.4 | B160: 120MFWD + Cultivator W/Chem 4-Row | C160: 16050 | E160: 7.54 | F160: 7.54 | G160: 12.47 | H160: 20.01 | I160: 0.25 | J160: 1.89 | K160: 3.12 | L160: 5.01 | M160: 5.73 | N160: 4.68 | O160: 10.41 | P160: 6.26 | Q160: 20.57
A161: 255.6 | B161: 145MFWD + Cultivator W/Chem 6-Row | C161: 22800 | E161: 10.71 | F161: 10.71 | G161: 17.6 | H161: 28.31 | I161: 0.18 | J161: 1.93 | K161: 3.17 | L161: 5.1 | M161: 5.08 | N161: 4.47 | O161: 9.55 | P161: 6 | Q161: 19.19
A162: 255.8 | B162: 180MFWD + Cultivator W/Chem 8-Row | C162: 31250 | E162: 14.68 | F162: 14.68 | G162: 24.01 | H162: 38.69 | I162: 0.14 | J162: 2.06 | K162: 3.36 | L162: 5.42 | M162: 3.99 | N162: 4.51 | O162: 8.5 | P162: 5.91 | Q162: 18.96
A163: 255.9 | B163: 225MFWD + Cultivator W/Chem 12-Row | C163: 41800 | E163: 19.64 | F163: 19.64 | G163: 32.01 | H163: 51.65 | I163: 0.09 | J163: 1.77 | K163: 2.88 | L163: 4.65 | M163: 3.26 | N163: 3.86 | O163: 7.12 | P163: 5.04 | Q163: 15.97
A164: 259 | B164: 75HP + Granular Applicator | C164: 3575 | E164: 1.75 | F164: 1.75 | G164: 2.88 | H164: 4.63 | I164: 0.56 | J164: 0.98 | K164: 1.61 | L164: 2.59 | M164: 6.9 | N164: 3.5 | O164: 10.4 | P164: 5.34 | Q164: 20.46
A165: 260 | B165: 100MFWD + PTO Air Blast Sprayer (500g) | C165: 18250 | E165: 11.16 | F165: 11.16 | G165: 16.49 | H165: 27.65 | I165: 0.2 | J165: 2.23 | K165: 3.3 | L165: 5.53 | M165: 3.49 | N165: 3.73 | O165: 7.22 | P165: 4.99 | Q165: 13.82
A166: 261.2 | B166: 55HP + Boom sprayer - 18FT | C166: 7000 | E166: 6.41 | F166: 6.41 | G166: 7.9 | H166: 14.31 | I166: 0.25 | J166: 1.6 | K166: 1.98 | L166: 3.58 | M166: 2.24 | N166: 2.4 | O166: 4.64 | P166: 3.18 | Q166: 9.67
A167: 261.4 | B167: 75MFWD + Boom sprayer - 18FT | C167: 7000 | E167: 6.41 | F167: 6.41 | G167: 7.9 | H167: 14.31 | I167: 0.15 | J167: 0.96 | K167: 1.19 | L167: 2.15 | M167: 1.92 | N167: 1.72 | O167: 3.64 | P167: 2.13 | Q167: 7.56
A168: 261.5 | B168: 75HP + Boom sprayer - 30FT | C168: 12200 | E168: 11.17 | F168: 11.17 | G168: 13.57 | H168: 24.74 | I168: 0.09 | J168: 1.01 | K168: 1.22 | L168: 2.23 | M168: 1.11 | N168: 1.41 | O168: 2.52 | P168: 1.82 | Q168: 5.38
A169: 261.6 | B169: 100MFWD + Boom sprayer - 8R 24FT | C169: 13400 | E169: 6.56 | F169: 6.56 | G169: 9.83 | H169: 16.39 | I169: 0.11 | J169: 0.72 | K169: 1.08 | L169: 1.8 | M169: 1.92 | N169: 1.54 | O169: 3.46 | P169: 2.01 | Q169: 7.1
A170: 261.8 | B170: 120MFWD + Boom sprayer - 60FT | C170: 27800 | E170: 25.45 | F170: 25.45 | G170: 30.58 | H170: 56.03 | I170: 0.05 | J170: 1.27 | K170: 1.53 | L170: 2.8 | M170: 1.15 | N170: 1.83 | O170: 2.98 | P170: 2.16 | Q170: 6.28
A171: 263.2 | B171: 55HP + Sidedress Attachment 2R | C171: 1600 | E171: 0.78 | F171: 0.78 | G171: 1.48 | H171: 2.26 | I171: 0.42 | J171: 0.33 | K171: 0.62 | L171: 0.95 | M171: 5.17 | N171: 2.22 | O171: 7.39 | P171: 3.41 | Q171: 13.67
A172: 263.4 | B172: 100HP + Sidedress Attachment 4R | C172: 2700 | E172: 1.32 | F172: 1.32 | G172: 2.26 | H172: 3.58 | I172: 0.21 | J172: 0.28 | K172: 0.47 | L172: 0.75 | M172: 4.4 | N172: 2.15 | O172: 6.55 | P172: 2.91 | Q172: 11.84
A173: 264 | B173: 75MFWD + Sprayer Blower 20FT+ | C173: 17500 | E173: 10.7 | F173: 10.7 | G173: 15.83 | H173: 26.53 | I173: 0.18 | J173: 1.93 | K173: 2.85 | L173: 4.78 | M173: 2.3 | N173: 2.84 | O173: 5.14 | P173: 3.99 | Q173: 11.54
A174: 265 | B174: 55HP + Mounted Sprayer | C174: 5000 | E174: 3.06 | F174: 3.06 | G174: 4.77 | H174: 7.83 | I174: 0.16 | J174: 0.49 | K174: 0.76 | L174: 1.25 | M174: 1.43 | N174: 1 | O174: 2.43 | P174: 1.53 | Q174: 4.99
A175: 266 | B175: 55HP + Weed Wiper | C175: 5450 | E175: 5.92 | F175: 5.92 | G175: 6.35 | H175: 12.27 | I175: 0.1 | J175: 0.59 | K175: 0.64 | L175: 1.23 | M175: 0.89 | N175: 0.92 | O175: 1.81 | P175: 1.12 | Q175: 3.37
A176: 270 | B176: 55HP + Mulch Lifter | C176: 2025 | E176: 1.9 | F176: 1.9 | G176: 3.37 | H176: 5.27 | I176: 1.06 | J176: 2.01 | K176: 3.57 | L176: 5.58 | M176: 9.48 | N176: 5.41 | O176: 14.89 | P176: 8.68 | Q176: 28.51
A177: 271 | B177: 55HP + Mulch Lifter & Wrapper 1R | C177: 3212.5 | E177: 3.02 | F177: 3.02 | G177: 5.17 | H177: 8.19 | I177: 1.06 | J177: 3.2 | K177: 5.48 | L177: 8.68 | M177: 9.48 | N177: 6.6 | O177: 16.08 | P177: 10.59 | Q177: 32.07
A178: 301 | B178: 55HP + Rotary Mower - 6 FT | C178: 11024 | E178: 5.18 | F178: 5.18 | G178: 8.67 | H178: 13.85 | I178: 0.57 | J178: 2.95 | K178: 4.94 | L178: 7.89 | M178: 5.1 | N178: 4.78 | O178: 9.88 | P178: 7.69 | Q178: 25.59
A179: 302 | B179: 75HP + Rotary Mower - 9 FT | C179: 13377.5 | E179: 6.28 | F179: 6.28 | G179: 10.46 | H179: 16.74 | I179: 0.38 | J179: 2.39 | K179: 3.97 | L179: 6.36 | M179: 4.68 | N179: 4.1 | O179: 8.78 | P179: 6.5 | Q179: 22.08
A180: 303 | B180: 100HP + Rotary Mower - 12 FT | C180: 15109 | E180: 7.09 | F180: 7.09 | G180: 11.78 | H180: 18.87 | I180: 0.29 | J180: 2.06 | K180: 3.42 | L180: 5.48 | M180: 5.06 | N180: 4.2 | O180: 9.26 | P180: 6.22 | Q180: 21.7
A181: 311 | B181: 75HP + Rotary Mower-Cond. - 9FT | C181: 25555.5 | E181: 12 | F181: 12 | G181: 19.72 | H181: 31.72 | I181: 0.28 | J181: 3.36 | K181: 5.52 | L181: 8.88 | M181: 3.45 | N181: 4.62 | O181: 8.07 | P181: 7.38 | Q181: 19.12
A182: 312 | B182: 75HP + Mower-Conditioner - 9 FT | C182: 14000 | E182: 6.57 | F182: 6.57 | G182: 10.93 | H182: 17.5 | I182: 0.28 | J182: 1.84 | K182: 3.06 | L182: 4.9 | M182: 3.45 | N182: 3.1 | O182: 6.55 | P182: 4.92 | Q182: 14.19
A183: 313 | B183: 100HP + Disc Mower-Conditioner - 12FT | C183: 37699 | E183: 17.7 | F183: 17.7 | G183: 28.95 | H183: 46.65 | I183: 0.21 | J183: 3.72 | K183: 6.08 | L183: 9.8 | M183: 3.66 | N183: 5.27 | O183: 8.93 | P183: 8.11 | Q183: 20.97
A184: 321 | B184: 75HP + Round Baler PTO 750# | C184: 31027.5 | E184: 14.84 | F184: 14.84 | G184: 28.45 | H184: 43.29 | I184: 0.26 | J184: 3.86 | K184: 7.4 | L184: 11.26 | M184: 3.2 | N184: 5.03 | O184: 8.23 | P184: 9.13 | Q184: 24.27
A185: 322 | B185: 100MFWD + Round Baler PTO 1500# | C185: 46848.5 | E185: 22.41 | F185: 22.41 | G185: 42.79 | H185: 65.2 | I185: 0.26 | J185: 5.83 | K185: 11.13 | L185: 16.96 | M185: 4.53 | N185: 7.78 | O185: 12.31 | P185: 13.33 | Q185: 35.87
A186: 323 | B186: 100MFWD + Round Baler PTO Silage | C186: 54066.5 | E186: 25.86 | F186: 25.86 | G186: 49.34 | H186: 75.2 | I186: 0.26 | J186: 6.72 | K186: 12.83 | L186: 19.55 | M186: 4.53 | N186: 8.68 | O186: 13.21 | P186: 15.03 | Q186: 39.75
A187: 326 | B187: 55HP + Square Baler PTO Twine | C187: 23449 | E187: 11.22 | F187: 11.22 | G187: 21.58 | H187: 32.8 | I187: 0.26 | J187: 2.92 | K187: 5.61 | L187: 8.53 | M187: 2.32 | N187: 3.76 | O187: 6.08 | P187: 6.86 | Q187: 16.16
A188: 326.5 | B188: 80HP + 16x18 Square Baler PTO Twine | C188: 26930 | E188: 12.88 | F188: 12.88 | G188: 24.74 | H188: 37.62 | I188: 0.26 | J188: 3.35 | K188: 6.43 | L188: 9.78 | M188: 3.2 | N188: 4.52 | O188: 7.72 | P188: 8.16 | Q188: 19.86
A189: 327 | B189: 80HP + Square Baler + Hyd. Accumulator | C189: 37630 | E189: 18 | F189: 18 | G189: 34.44 | H189: 52.44 | I189: 0.26 | J189: 4.68 | K189: 8.95 | L189: 13.63 | M189: 3.2 | N189: 5.85 | O189: 9.05 | P189: 10.68 | Q189: 24.72
A190: 328 | B190: 80HP + Square Baler + Bale Bander | C190: 80930 | E190: 38.71 | F190: 38.71 | G190: 73.69 | H190: 112.4 | I190: 0.26 | J190: 10.06 | K190: 19.16 | L190: 29.22 | M190: 3.2 | N190: 11.24 | O190: 14.44 | P190: 20.89 | Q190: 44.41
A191: 329 | B191: 80HP + Bale Pickup Wagon | C191: 30000 | E191: 14.35 | F191: 14.35 | G191: 27.52 | H191: 41.87 | I191: 0.26 | J191: 3.73 | K191: 7.16 | L191: 10.89 | M191: 3.2 | N191: 4.9 | O191: 8.1 | P191: 8.88 | Q191: 21.25
A192: 330 | B192: 145MFWD + Lg Rectangler Baler 3x3 | C192: 95000 | E192: 29.44 | F192: 29.44 | G192: 49.18 | H192: 78.62 | I192: 0.12 | J192: 3.53 | K192: 5.9 | L192: 9.43 | M192: 3.38 | N192: 5.23 | O192: 8.61 | P192: 7.79 | Q192: 20.71
A193: 331 | B193: 55HP + Side Delivery Rake - 9 FT | C193: 8345 | E193: 5.05 | F193: 5.05 | G193: 9.16 | H193: 14.21 | I193: 0.23 | J193: 1.16 | K193: 2.11 | L193: 3.27 | M193: 2.06 | N193: 1.9 | O193: 3.96 | P193: 3.22 | Q193: 8.49
A194: 332 | B194: 75HP + Side Delivery Rake -11 FT | C194: 9292.5 | E194: 5.62 | F194: 5.62 | G194: 10.17 | H194: 15.79 | I194: 0.19 | J194: 1.07 | K194: 1.93 | L194: 3 | M194: 2.34 | N194: 1.92 | O194: 4.26 | P194: 3.2 | Q194: 8.9
A195: 333 | B195: 120HP + Dual Side Delivery Rakes | C195: 30158.5 | E195: 18.26 | F195: 18.26 | G195: 32.46 | H195: 50.72 | I195: 0.11 | J195: 2.01 | K195: 3.57 | L195: 5.58 | M195: 2.31 | N195: 2.99 | O195: 5.3 | P195: 4.85 | Q195: 11.87
A196: 336 | B196: 55HP + Wheel Rake - 18 FT | C196: 7433.5 | E196: 4.5 | F196: 4.5 | G196: 8.19 | H196: 12.69 | I196: 0.11 | J196: 0.5 | K196: 0.9 | L196: 1.4 | M196: 0.98 | N196: 0.85 | O196: 1.83 | P196: 1.43 | Q196: 3.87
A197: 337 | B197: 55HP + Wheel Rake - 27 FT | C197: 21150.5 | E197: 12.8 | F197: 12.8 | G197: 22.84 | H197: 35.64 | I197: 0.08 | J197: 1.02 | K197: 1.83 | L197: 2.85 | M197: 0.72 | N197: 1.28 | O197: 2 | P197: 2.21 | Q197: 4.89
A198: 341 | B198: 35HP + Sickle Mower - 6 FT | C198: 5032 | E198: 4.72 | F198: 4.72 | G198: 7.94 | H198: 12.66 | I198: 0.39 | J198: 1.84 | K198: 3.1 | L198: 4.94 | M198: 2.24 | N198: 2.66 | O198: 4.9 | P198: 4.37 | Q198: 10.54
A199: 342 | B199: 55HP + Sickle Mower - 7.5 FT | C199: 5188 | E199: 4.87 | F199: 4.87 | G199: 8.18 | H199: 13.05 | I199: 0.32 | J199: 1.56 | K199: 2.62 | L199: 4.18 | M199: 2.86 | N199: 2.59 | O199: 5.45 | P199: 4.16 | Q199: 11.17
A200: 350 | B200: 75HP + SILAGE BLOWER | C200: 3250 | E200: 1.59 | F200: 1.59 | G200: 2.65 | H200: 4.24 | I200: 0.47 | J200: 0.75 | K200: 1.25 | L200: 2 | M200: 5.79 | N200: 2.86 | O200: 8.65 | P200: 4.37 | Q200: 16.22
A201: 351 | B201: 100MFWD + Forage Harvestor Pkup 6Ft | C201: 34673 | E201: 15.74 | F201: 15.74 | G201: 28.02 | H201: 43.76 | I201: 0.63 | J201: 9.92 | K201: 17.65 | L201: 27.57 | M201: 10.98 | N201: 14.64 | O201: 25.62 | P201: 23 | Q201: 51.16
A202: 352 | B202: 100MFWD + Forage Harvestor 2R 6FT | C202: 34955.5 | E202: 13.22 | F202: 13.22 | G202: 23.58 | H202: 36.8 | I202: 0.57 | J202: 7.54 | K202: 13.44 | L202: 20.98 | M202: 9.94 | N202: 11.81 | O202: 21.75 | P202: 18.27 | Q202: 46.47
... 91 more rows

Sheet Seed
A1: ESTIMATED 2017/2018 PRICES FOR SEED, FERTILIZERS, AND LIME
A2: (USED IN PREPARING THE ENTERPRISE BUDGETS FOR 2018)
D3: BUDGET | H3: PRICE FOR | I3: Seed Count
A4: CODE | B4: TYPE | C4: UNIT | D4: UNIT | E4: PRICE 1 | F4: PRICE 2 | G4: AVERAGE | H4: BUDGET UNIT | I4: Unit
A6: ROW CROP SEED
A7: 1 | B7: SEED: WHEAT | C7: BAG | D7: BAG | E7: 15 | F7: 16.5 | G7: =IF(E7=0,F7,IF(F7=0,E7,AVERAGE(E7,F7))) -> 15.75 | H7: =ROUND(IF(C7=D7,G7,0),2) -> 15.75
A8: 1.1 | B8: WHEAT - Treated | C8: BAG | D8: BAG | E8: 19 | F8: 24.5 | G8: 21.75 | H8: 21.75
A9: 1.2 | B9: WHEAT - Organic | C9: BAG | D9: BAG | E9: 26.5 | G9: 26.5 | H9: 26.5
A10: 1.3 | B10: WHEAT - Variety X | C10: BAG | D10: BAG | G10: 0 | H10: 0
A11: 2 | B11: SEED: OATS | C11: BAG | D11: BAG | E11: 8.96 | F11: 12 | G11: 10.48 | H11: 10.48
A12: 3 | B12: SEED: BARLEY | C12: BAG | D12: BAG | E12: 11.5 | F12: 14 | G12: 12.75 | H12: 12.75
A13: 3.5 | B13: SEED: BARLEY Thoroughbred | C13: BAG | D13: BAG | E13: 9 | F13: 12.5 | G13: 10.75 | H13: 10.75
A14: 4 | B14: SEED: SOYBEANS | C14: BAG | D14: BAG | E14: 37 | F14: 49 | G14: 43 | H14: 43
A15: 4.1 | B15: SEED: SOYBEANS-eMerge | C15: BAG | D15: BAG | E15: 37.95 | F15: 41.95 | G15: 39.95 | H15: 39.95
A16: 4.2 | B16: SEED: SOYBEANS-RR2 | C16: BAG | D16: BAG | E16: 55 | F16: 65 | G16: 60 | H16: =ROUND(IF(C16=D16,G16,0),2) -> 60 | I16: 140000
A17: 4.3 | B17: SEED: SOYBEANS-RR2 treated | C17: BAG | D17: BAG | E17: 65 | F17: 74 | G17: 69.5 | H17: =ROUND(IF(C17=D17,G17,0),2) -> 69.5 | I17: 140000
A18: 4.5 | B18: SEED: SOYBEANS-LL | C18: BAG | D18: BAG | E18: 52 | F18: 62 | G18: 57 | H18: =ROUND(IF(C18=D18,G18,0),2) -> 57
A19: 4.6 | B19: SEED: SOYBEANS-STS | C19: BAG | D19: BAG | E19: 39 | F19: 52 | G19: =IF(E19=0,F19,IF(F19=0,E19,AVERAGE(E19,F19))) -> 45.5 | H19: =ROUND(IF(C19=D19,G19,0),2) -> 45.5
A20: 4.7 | B20: SEED: Forage Soybeans | C20: BAG | D20: BAG | E20: 30 | F20: 42 | G20: =IF(E20=0,F20,IF(F20=0,E20,AVERAGE(E20,F20))) -> 36 | H20: =ROUND(IF(C20=D20,G20,0),2) -> 36
A21: 4.9 | B21: SEED INNOCULANT | C21: #/Seed | D21: #/Seed | E21: =3/50 -> 0.06 | G21: 0.06 | H21: 0.06
A22: 5 | B22: TOBACCO PLANTS - Burley | C22: 1M | D22: 1M | E22: 35 | F22: 42 | G22: 38.5 | H22: 38.5
A23: 5.1 | B23: TOBACCO PLANTS - Dark-fired | C23: 1M | D23: 1M | E23: 35 | F23: 42 | G23: 38.5 | H23: =ROUND(IF(C23=D23,G23,0),2) -> 38.5
A24: 5.2 | B24: TOBACCO PLANTS - Flue-cured | C24: 1M | D24: 1M | E24: 35 | F24: 42 | G24: 38.5 | H24: =ROUND(IF(C24=D24,G24,0),2) -> 38.5
A25: 5.3 | B25: TOBACCO PLANTS - Plantbed | C25: 1M | D25: 1M | E25: 25 | F25: 35 | G25: 30 | H25: 30
A26: 5.6 | B26: TOBACCO - Burley | C26: 1M | D26: 1M | E26: =390/180 -> 2.166666667 | F26: =410/180 -> 2.277777778 | G26: 2.222222222 | H26: 2.22
A27: 5.7 | B27: TOBACCO - Dark-fired | C27: 1M | D27: 1M | E27: =390/180 -> 2.166666667 | F27: =410/180 -> 2.277777778 | G27: 2.222222222 | H27: 2.22
A28: 5.8 | B28: TOBACCO - Flue-cured | C28: 1M | D28: 1M | E28: =390/180 -> 2.166666667 | F28: =410/180 -> 2.277777778 | G28: 2.222222222 | H28: 2.22
A29: 6 | B29: SEED: CORN | C29: BAG | D29: BAG | E29: 156 | F29: 226 | G29: 191 | H29: =ROUND(IF(C29=D29,G29,0),3) -> 191 | I29: 80000
A30: 6.11 | B30: SEED: CORN Smart Stax | C30: BAG | D30: BAG | E30: 288 | F30: 310 | G30: 299 | H30: =ROUND(IF(C30=D30,G30,0),3) -> 299
A31: 6.11 | B31: SEED: CORN VT3 PRO | C31: BAG | D31: BAG | E31: 275 | F31: 300 | G31: 287.5 | H31: =ROUND(IF(C31=D31,G31,0),3) -> 287.5
A32: 6.12 | B32: SEED: CORN VT2 PRO | C32: BAG | D32: BAG | E32: 230 | F32: 250 | G32: 240 | H32: 240
A33: 6.13 | B33: SEED: CORN BT-RW | C33: BAG | D33: BAG | E33: 134 | F33: 200 | G33: 167 | H33: 167
A34: 6.14 | B34: SEED: CORN BT-RR2 | C34: BAG | D34: BAG | E34: 165 | F34: 185 | G34: 175 | H34: 175
A35: 6.15 | B35: SEED: CORN BT | C35: BAG | D35: BAG | E35: 140 | F35: 165 | G35: 152.5 | H35: 152.5
A36: 6.21 | B36: SEED: Corn BMR Stacked | C36: BAG | D36: BAG | E36: 245 | F36: 300 | G36: 272.5 | H36: 272.5
A37: 6.22 | B37: SEED: CORN RR2 | C37: BAG | D37: BAG | E37: 185 | F37: 245 | G37: 215 | H37: 215
A38: 6.41 | B38: SEED: CORN-RW | C38: BAG | D38: BAG | E38: 205 | F38: 215 | G38: =IF(E38=0,F38,IF(F38=0,E38,AVERAGE(E38,F38))) -> 210 | H38: 210
A39: 6.5 | B39: SEED: CORN Organic | C39: BAG | D39: BAG | E39: 129 | F39: 159 | G39: =IF(E39=0,F39,IF(F39=0,E39,AVERAGE(E39,F39))) -> 144 | H39: 144
A40: 6.5125 | B40: SEED: CORN Poncho 1250 | C40: BAG | D40: BAG | E40: 190 | F40: 244 | G40: 217 | H40: 217
A41: 6.6 | B41: SEED: CORN HX+LL | C41: BAG | D41: BAG | E41: 176 | F41: 180 | G41: 178 | H41: =ROUND(IF(C41=D41,G41,0),3) -> 178
A42: 6.61 | B42: SEED: CORN HI+LL | C42: BAG | D42: BAG | E42: 212 | F42: 220 | G42: 216 | H42: =ROUND(IF(C42=D42,G42,0),3) -> 216
A43: 6.62 | B43: SEED: CORN HRW+LL | C43: BAG | D43: BAG | E43: 236 | F43: 280 | G43: 258 | H43: =ROUND(IF(C43=D43,G43,0),3) -> 258
A44: 6.8 | B44: SEED: CORN eMerge | C44: BAG | D44: BAG | E44: 175 | F44: 185 | G44: 180 | H44: =ROUND(IF(C44=D44,G44,0),3) -> 180
A45: 7 | B45: SEED: COTTON Conventional | C45: BAG | D45: BAG | E45: 152.5 | F45: 184.95 | G45: 168.725 | H45: =ROUND(IF(C45=D45,G45,0),2) -> 168.73 | I45: 250000
A46: 7.1 | B46: SEED: COTTON-RR Flex | C46: BAG | D46: BAG | E46: =(E$45*($I46/$I$45))+264.2 -> 404.5 | F46: =(F$45*($I46/$I$45))+264.2 -> 434.354 | G46: 419.427 | H46: 419.43 | I46: 230000
A47: 7.2 | B47: SEED: COTTON-B2 | C47: BAG | D47: BAG | E47: =(E$45*($I47/$I$45))+193 -> 333.3 | F47: =(F$45*($I47/$I$45))+193 -> 363.154 | G47: 348.227 | H47: 348.23 | I47: 230000
A48: 7.3 | B48: SEED: COTTON-B2RF | C48: BAG | D48: BAG | E48: =(E$45*($I48/$I$45))+379.2 -> 519.5 | F48: =(F$45*($I48/$I$45))+379.2 -> 549.354 | G48: 534.427 | H48: 534.43 | I48: 230000
A49: 7.5 | B49: SEED: COTTON-WRF | C49: BAG | D49: BAG | E49: =(E$45*($I49/$I$45))+(94+265) -> 499.3 | F49: =(F$45*($I49/$I$45))+(94+255) -> 519.154 | G49: 509.227 | H49: 509.23 | I49: 230000
A50: 7.6 | B50: SEED: COTTON-LLB2 | C50: BAG | D50: BAG | E50: =(E$45*($I50/$I$45))+(100+184.6) -> 418.8 | F50: =(F$45*($I50/$I$45))+(100+184.6) -> 447.356 | G50: 433.078 | H50: 433.08 | I50: 220000
A51: 7.7 | B51: SEED: COTTON-GLT | C51: BAG | D51: BAG | E51: 277.5 | F51: 287.5 | G51: =IF(E51=0,F51,IF(F51=0,E51,AVERAGE(E51,F51))) -> 282.5 | H51: =ROUND(IF(C51=D51,G51,0),2) -> 282.5 | I51: 220000
A52: 7.8 | B52: SEED: COTTON-GLB2 | C52: BAG | D52: BAG | E52: =(E$45*($I52/$I$45))+(90+184.6) -> 408.8 | F52: =(F$45*($I52/$I$45))+(90+184.6) -> 437.356 | G52: =IF(E52=0,F52,IF(F52=0,E52,AVERAGE(E52,F52))) -> 423.078 | H52: =ROUND(IF(C52=D52,G52,0),2) -> 423.08 | I52: 220000
A53: 7.9 | B53: SEED: COTTON-Enlist | C53: BAG | D53: BAG | G53: =IF(E53=0,F53,IF(F53=0,E53,AVERAGE(E53,F53))) -> 0 | H53: =ROUND(IF(C53=D53,G53,0),2) -> 0
A54: 8 | B54: SEED: PEANUTS Virginia | C54: LBS | D54: LBS | E54: 0.8 | F54: 0.84 | G54: 0.82 | H54: 0.82
A55: 8.5 | B55: SEED: PEANUTS Runner | C55: LBS | D55: LBS | E55: 0.78 | F55: 0.82 | G55: 0.8 | H55: 0.8
A56: 9 | B56: SEED: SUNFLOWER | C56: LBS | D56: LBS | E56: =29.99/50 -> 0.5998 | F56: =41.99/50 -> 0.8398 | G56: 0.7198 | H56: 0.72
A57: 10 | B57: SEED: GRAIN SORGHUM | C57: LBS | D57: LBS | E57: 2.5 | F57: =140/50 -> 2.8 | G57: 2.65 | H57: 2.65
A58: 11 | B58: SEED: CANOLA (RR Higher) | C58: LBS | D58: LBS | E58: 2.5 | F58: 4.5 | G58: 3.5 | H58: 3.5
A59: FORAGE SEED
A60: 100.1 | B60: SEED Innoculant: Alfalfa | C60: #/Seed | D60: #/Seed | E60: =11.99/50 -> 0.2398 | F60: 3.86 | G60: =IF(E60=0,F60,IF(F60=0,E60,AVERAGE(E60,F60))) -> 2.0499 | H60: =ROUND(IF(C60=D60,G60,0),2) -> 2.05
A61: 100.2 | B61: SEED Innoculant: Clover | C61: #/Seed | D61: #/Seed | E61: =11.99/50 -> 0.2398 | F61: 3.86 | G61: =IF(E61=0,F61,IF(F61=0,E61,AVERAGE(E61,F61))) -> 2.0499 | H61: 2.05
A62: 100.5 | B62: SEED Innoculant: Soybeans | C62: Unit | D62: Unit | E62: 3.5 | F62: 3.8 | G62: =IF(E62=0,F62,IF(F62=0,E62,AVERAGE(E62,F62))) -> 3.65 | H62: 3.65
A63: 101 | B63: SEED: ALFALFA | C63: LBS | D63: LBS | E63: 3.55 | F63: 4.98 | G63: =IF(E63=0,F63,IF(F63=0,E63,AVERAGE(E63,F63))) -> 4.265 | H63: 4.27
A64: 101.1 | B64: SEED: ALFALFA grazing varieties | C64: LBS | D64: LBS | E64: =259/50 -> 5.18 | F64: =295/50 -> 5.9 | G64: =IF(E64=0,F64,IF(F64=0,E64,AVERAGE(E64,F64))) -> 5.54 | H64: =ROUND(IF(C64=D64,G64,0),2) -> 5.54
A65: 101.5 | B65: SEED: ALFALFA RR | C65: LBS | D65: LBS | E65: =485/50 -> 9.7 | F65: =555/50 -> 11.1 | G65: =IF(E65=0,F65,IF(F65=0,E65,AVERAGE(E65,F65))) -> 10.4 | H65: 10.4
A66: 102.9 | B66: SEED: ALFALFA - Organic | C66: LBS | D66: LBS | E66: =237/50 -> 4.74 | F66: 5 | G66: 4.87 | H66: 4.87
A67: 103 | B67: SEED: Austrian Winter Pea | C67: LBS | D67: LBS | E67: 0.73 | F67: 0.85 | G67: 0.79 | H67: 0.79
A68: 104 | B68: SEED: Bentgrass - Creeping | C68: LBS | D68: LBS | E68: =253/25 -> 10.12 | F68: =306/25 -> 12.24 | G68: 11.18 | H68: =ROUND(IF(C68=D68,G68,0),3) -> 11.18
A69: 105 | B69: SEED: Bermudagrass | C69: LBS | D69: LBS | E69: 5 | F69: 8.6 | G69: 6.8 | H69: 6.8
A70: 106 | B70: Bermudagrass Sprigs | C70: each | D70: each | F70: =39.99/36 -> 1.110833333 | G70: 1.110833333 | H70: 1.111
A71: 107 | B71: SEED: Birdsfoot Trefoil | C71: LBS | D71: LBS | E71: =315/50 -> 6.3 | F71: =499/50 -> 9.98 | G71: 8.14 | H71: 8.14
A72: 108 | B72: SEED: Bluegrass - Kentucky | C72: LBS | D72: LBS | E72: =130/50 -> 2.6 | F72: =189.99/50 -> 3.7998 | G72: 3.1999 | H72: 3.2
A73: 109 | B73: SEED: Bromegrass - Smooth | C73: LBS | D73: LBS | E73: =269/50 -> 5.38 | F73: =339/50 -> 6.78 | G73: 6.08 | H73: 6.08
A74: 110 | B74: SEED: Buckwheat | C74: LBS | D74: LBS | E74: =48.99/50 -> 0.9798 | F74: =54.99/50 -> 1.0998 | G74: 1.0398 | H74: 1.04
A75: 111 | B75: SEED: Caucasian Bluestem | C75: LBS PLS | D75: LBS PLS | E75: =455/25 -> 18.2 | F75: =500/25 -> 20 | G75: 19.1 | H75: 19.1
A76: 112 | B76: SEED: CLOVER - Alsike | C76: LBS | D76: LBS | E76: 3.86 | F76: 3.9 | G76: 3.88 | H76: =ROUND(IF(C76=D76,G76,0),2) -> 3.88
A77: 113 | B77: SEED: CLOVER - Crimson | C77: LBS | D77: LBS | E77: 1.8 | G77: 1.8 | H77: =ROUND(IF(C77=D77,G77,0),2) -> 1.8
A78: 114 | B78: SEED: CLOVER - Ladino | C78: LBS | D78: LBS | E78: =180/50 -> 3.6 | F78: =205/50 -> 4.1 | G78: =IF(E78=0,F78,IF(F78=0,E78,AVERAGE(E78,F78))) -> 3.85 | H78: =ROUND(IF(C78=D78,G78,0),2) -> 3.85
A79: 115 | B79: SEED: CLOVER - Red | C79: LBS | D79: LBS | E79: 1.8 | F79: 2.98 | G79: 2.39 | H79: =ROUND(IF(C79=D79,G79,0),2) -> 2.39
A80: 116 | B80: SEED: CLOVER - Sweet | C80: LBS | D80: LBS | E80: =130/50 -> 2.6 | F80: =150/50 -> 3 | G80: 2.8 | H80: =ROUND(IF(C80=D80,G80,0),2) -> 2.8
A81: 117 | B81: SEED: Comfrey, Quaker | C81: LBS | D81: LBS | G81: 0 | H81: =ROUND(IF(C81=D81,G81,0),3) -> 0
A82: 118 | B82: SEED: Crabgrass | C82: LBS PLS | D82: LBS PLS | E82: =560/50 -> 11.2 | F82: =569/50 -> 11.38 | G82: 11.29 | H82: =ROUND(IF(C82=D82,G82,0),3) -> 11.29
A83: 119 | B83: SEED: Crownvetch | C83: LBS | D83: LBS | E83: 1.9 | F83: 2.38 | G83: 2.14 | H83: =ROUND(IF(C83=D83,G83,0),3) -> 2.14
A84: 120 | B84: SEED: Eastern Gamagrass | C84: LBS PLS | D84: LBS PLS | E84: 0.5 | G84: 0.5 | H84: =ROUND(IF(C84=D84,G84,0),3) -> 0.5
A85: 121 | B85: SEED: FESCUE - Endophyte Free | C85: LBS | D85: LBS | E85: 1.24 | F85: 1.35 | G85: 1.295 | H85: =ROUND(IF(C85=D85,G85,0),2) -> 1.3
A86: 122 | B86: SEED: FESCUE - Friendly Endophyte | C86: LBS | D86: LBS | E86: 3.5 | F86: 3.76 | G86: 3.63 | H86: =ROUND(IF(C86=D86,G86,0),2) -> 3.63
A87: 123 | B87: SEED: FESCUE - KY31 | C87: LBS | D87: LBS | E87: =59/50 -> 1.18 | F87: 1.1 | G87: 1.14 | H87: =ROUND(IF(C87=D87,G87,0),2) -> 1.14
A88: 124 | B88: SEED: Lab Lab Bean | C88: LBS | D88: LBS | E88: =155/55 -> 2.818181818 | G88: 2.818181818 | H88: =ROUND(IF(C88=D88,G88,0),3) -> 2.818
A89: 125 | B89: SEED: Lespedeza - Annual | C89: LBS | D89: LBS | E89: =280/50 -> 5.6 | F89: =315/50 -> 6.3 | G89: 5.95 | H89: =ROUND(IF(C89=D89,G89,0),3) -> 5.95
A90: 125.5 | B90: SEED: Lespedeza - Bicolor | C90: LBS | D90: LBS | E90: =300/50 -> 6 | F90: =350/50 -> 7 | G90: 6.5 | H90: =ROUND(IF(C90=D90,G90,0),3) -> 6.5
A91: 126 | B91: SEED: Lespedeza - Sericea | C91: LBS | D91: LBS | E91: =169/50 -> 3.38 | F91: =275/50 -> 5.5 | G91: 4.44 | H91: =ROUND(IF(C91=D91,G91,0),3) -> 4.44
A92: 127 | B92: SEED: Matua Prairie Grass | C92: LBS | D92: LBS | E92: 2.16 | F92: 2.35 | G92: 2.255 | H92: =ROUND(IF(C92=D92,G92,0),3) -> 2.255
A93: 128 | B93: SEED: Millet - Foxtail | C93: LBS | D93: LBS | E93: =55/50 -> 1.1 | G93: 1.1 | H93: =ROUND(IF(C93=D93,G93,0),2) -> 1.1
A94: 128.5 | B94: SEED: Millet - Pearl | C94: LBS | D94: LBS | E94: =74.99/50 -> 1.4998 | F94: =74.99/50 -> 1.4998 | G94: 1.4998 | H94: =ROUND(IF(C94=D94,G94,0),2) -> 1.5
A95: 129 | B95: SEED: Orchardgrass | C95: LBS | D95: LBS | E95: 2.15 | F95: 3 | G95: 2.575 | H95: =ROUND(IF(C95=D95,G95,0),2) -> 2.58 | I95: Potomac
A96: 130 | B96: SEED: Rape | C96: LBS | D96: LBS | E96: =49.99/50 -> 0.9998 | F96: =56.99/50 -> 1.1398 | G96: 1.0698 | H96: =ROUND(IF(C96=D96,G96,0),3) -> 1.07
A97: 131 | B97: SEED: Redtop (Herdsgrass) | C97: LBS | D97: LBS | E97: 7.35 | F97: 8.46 | G97: 7.905 | H97: 7.905
A98: 132 | B98: SEED: Reed Canarygrass | C98: LBS | D98: LBS | E98: =700/50 -> 14 | G98: 14 | H98: 14
A99: 133 | B99: SEED: RYE | C99: BU. | D99: BU. | E99: 32 | F99: 37 | G99: 34.5 | H99: 34.5
A100: 133.5 | B100: SEED: RYE Cover crop | C100: LBS | D100: LBS | E100: 0.33 | F100: =18.99/50 -> 0.3798 | G100: 0.3549 | H100: 0.355
A101: 134 | B101: SEED: RYEGRASS (Annual) | C101: LBS | D101: LBS | E101: 0.6 | F101: =35/50 -> 0.7 | G101: 0.65 | H101: 0.65
A102: 134.5 | B102: SEED: RYEGRASS (Perennial) | C102: LBS | D102: LBS | E102: 1.3 | G102: 1.3 | H102: 1.3
A103: 135 | B103: SEED: Sorghum - BMR forage | C103: LBS | D103: LBS | E103: 1.2 | F103: 1.66 | G103: =IF(E103=0,F103,IF(F103=0,E103,AVERAGE(E103,F103))) -> 1.43 | H103: =ROUND(IF(C103=D103,G103,0),2) -> 1.43
A104: 136 | B104: SEED: Sorghum - sweet | C104: LBS | D104: LBS | E104: 7.5 | F104: 9.5 | G104: =IF(E104=0,F104,IF(F104=0,E104,AVERAGE(E104,F104))) -> 8.5 | H104: =ROUND(IF(C104=D104,G104,0),2) -> 8.5
A105: 137 | B105: SEED: Sorghum / Sudangrass | C105: LBS | D105: LBS | E105: =99/50 -> 1.98 | G105: =IF(E105=0,F105,IF(F105=0,E105,AVERAGE(E105,F105))) -> 1.98 | H105: =ROUND(IF(C105=D105,G105,0),2) -> 1.98
A106: 138 | B106: SEED: Sudangrass | C106: LBS | D106: LBS | E106: =72/50 -> 1.44 | F106: 1.5 | G106: 1.47 | H106: =ROUND(IF(C106=D106,G106,0),3) -> 1.47
A107: 139 | B107: SEED: Sugar Beets - Biennial | C107: LBS | D107: LBS | E107: =235/50 -> 4.7 | F107: =260/50 -> 5.2 | G107: 4.95 | H107: 4.95
A108: 140 | B108: SEED: Switchgrass | C108: LBS PLS | D108: LBS PLS | F108: =69.99/5 -> 13.998 | G108: 13.998 | H108: 13.998
A109: 140.5 | B109: SEED: Tall Meadow Oatgrass | C109: LBS | D109: LBS | E109: 4.4 | F109: 8 | G109: 6.2 | H109: 6.2
A110: 141 | B110: SEED: Teff | C110: LBS | D110: LBS | E110: =169/50 -> 3.38 | F110: =199/50 -> 3.98 | G110: =IF(E110=0,F110,IF(F110=0,E110,AVERAGE(E110,F110))) -> 3.68 | H110: =ROUND(IF(C110=D110,G110,0),3) -> 3.68
A111: 142 | B111: SEED: Timothy | C111: LBS | D111: LBS | E111: =89.99/50 -> 1.7998 | F111: =125.99/50 -> 2.5198 | G111: 2.1598 | H111: 2.16
A112: 142.1 | B112: SEED: Timothy Organic | C112: LBS | D112: LBS | E112: 1.88 | F112: 2.53 | G112: =IF(E112=0,F112,IF(F112=0,E112,AVERAGE(E112,F112))) -> 2.205 | H112: =ROUND(IF(C112=D112,G112,0),3) -> 2.205
A113: 142.5 | B113: SEED: Tritacal | C113: LBS | D113: LBS | E113: 0.31 | F113: 0.35 | G113: =IF(E113=0,F113,IF(F113=0,E113,AVERAGE(E113,F113))) -> 0.33 | H113: =ROUND(IF(C113=D113,G113,0),3) -> 0.33
A114: 143 | B114: SEED: Weping Lovegrass | C114: LBS | D114: LBS | E114: =310/50 -> 6.2 | G114: 6.2 | H114: 6.2
A115: 144 | B115: SEED: White Clover - Common | C115: LBS | D115: LBS | E115: 2.3 | F115: =170/50 -> 3.4 | G115: =IF(E115=0,F115,IF(F115=0,E115,AVERAGE(E115,F115))) -> 2.85 | H115: =ROUND(IF(C115=D115,G115,0),3) -> 2.85
A116: 145 | B116: SEED: White Clover - Ladino | C116: LBS | D116: LBS | E116: 2.7 | F116: =259/50 -> 5.18 | G116: =IF(E116=0,F116,IF(F116=0,E116,AVERAGE(E116,F116))) -> 3.94 | H116: 3.94
A117: 150 | B117: SEED: Forage Radish | C117: LBS | D117: LBS | E117: 1.33 | F117: 1.98 | G117: =IF(E117=0,F117,IF(F117=0,E117,AVERAGE(E117,F117))) -> 1.655 | H117: =ROUND(IF(C117=D117,G117,0),3) -> 1.655
A118: VEGETABLE & FRUIT SEED
A119: 200 | B119: SEED: (Not Included) | C119: 1M | D119: 1M | G119: =IF(E119=0,F119,IF(F119=0,E119,AVERAGE(E119,F119))) -> 0 | H119: =ROUND(IF(C119=D119,G119,0),2) -> 0
A120: 201 | B120: Asparagus Crowns | C120: 1M | D120: 1M | E120: 60.9 | F120: 76.6 | G120: =IF(E120=0,F120,IF(F120=0,E120,AVERAGE(E120,F120))) -> 68.75 | H120: =ROUND(IF(C120=D120,G120,0),2) -> 68.75
A121: 203 | B121: SEED: BROCCOLI | C121: LBS | D121: LBS | E121: 34 | F121: 230 | G121: =IF(E121=0,F121,IF(F121=0,E121,AVERAGE(E121,F121))) -> 132 | H121: =ROUND(IF(C121=D121,G121,0),2) -> 132
A122: 204 | B122: SEED: BROCCOLI | C122: 1M | D122: 1M | E122: 2.5 | F122: 4.45 | G122: 3.475 | H122: 3.48
A123: 205 | B123: SEED: CABBAGE - Fresh Market | C123: 1M | D123: 1M | E123: 3.45 | F123: 5.15 | G123: 4.3 | H123: 4.3
A124: 206 | B124: SEED: CABBAGE - Storage | C124: 1M | D124: 1M | E124: 7.35 | F124: 8.35 | G124: 7.85 | H124: 7.85
A125: 210 | B125: SEED: Carrots | C125: LBS | D125: LBS | E125: 10.7 | G125: 10.7 | H125: 10.7
A126: 211 | B126: SEED: Carrots | C126: 1M | D126: 1M | E126: 0.37 | F126: 0.71 | G126: 0.54 | H126: 0.54
A127: 215 | B127: SEED: Cauliflower | C127: 1M | D127: 1M | E127: 4.85 | F127: 26.7 | G127: 15.775 | H127: 15.78
A128: 218 | B128: SEED: Collards | C128: LBS | D128: LBS | E128: 12.15 | G128: 12.15 | H128: 12.15
A129: 220 | B129: SEED: Pickling Cucumber | C129: 1M | D129: 1M | E129: 2.9 | F129: 7.25 | G129: 5.075 | H129: 5.08
A130: 221 | B130: SEED: Cucumber | C130: 1M | D130: 1M | E130: 5.4 | F130: 18.5 | G130: 11.95 | H130: 11.95
A131: 225 | B131: SEED: Eggplant | C131: 1M | D131: 1M | E131: 6.3 | F131: 13.55 | G131: 9.925 | H131: 9.93
A132: 226 | B132: SEED: Gourds | C132: LBS | D132: LBS | E132: 47.3 | F132: 72.5 | G132: 59.9 | H132: 59.9
A133: 227 | B133: SEED: Green Beans | C133: LBS | D133: LBS | E133: 1.65 | F133: 2.5 | G133: 2.075 | H133: 2.08
A134: 228 | B134: SEED: Green Beans | C134: 1M | D134: 1M | E134: 1.8 | F134: 2.65 | G134: 2.225 | H134: 2.23
A135: 229 | B135: SEED: Kale | C135: 1M | D135: 1M | E135: 4.3 | F135: 9.2 | G135: 6.75 | H135: 6.75
A136: 230 | B136: SEED: Lima Beans | C136: LBS | D136: LBS | E136: 1.3 | F136: 2.25 | G136: 1.775 | H136: 1.78
A137: 231 | B137: SEED: MELONS Canteloupes | C137: 1M | D137: 1M | E137: 34.9 | F137: 40.95 | G137: 37.925 | H137: 37.93
A138: 232 | B138: SEED: MELONS Honeydew | C138: 1M | D138: 1M | E138: 24.05 | F138: 25.2 | G138: 24.625 | H138: 24.63
A139: 233 | B139: SEED: MELONS Speciality | C139: 1M | D139: 1M | E139: 30.05 | F139: 42.65 | G139: 36.35 | H139: 36.35
A140: 235 | B140: SEED: Okra | C140: LBS | D140: LBS | E140: 140 | F140: 155 | G140: 147.5 | H140: 147.5
A141: 236 | B141: SEED: Onions Bunching | C141: LBS | D141: LBS | E141: 16.5 | F141: 50 | G141: 33.25 | H141: 33.25
A142: 237 | B142: SEED: Onions Yellow | C142: 1M | D142: 1M | E142: 1.35 | F142: 1.65 | G142: 1.5 | H142: 1.5
A143: 238 | B143: SEED: Peas | C143: LBS | D143: LBS | E143: 1.5 | F143: 2.4 | G143: 1.95 | H143: 1.95
A144: 239 | B144: SEED: Peas Edible Pod | C144: LBS | D144: LBS | E144: 1.95 | F144: 2.95 | G144: 2.45 | H144: 2.45
A145: 241 | B145: SEED: PEPPERS | C145: 1M | D145: 1M | E145: 32 | F145: 53.8 | G145: =IF(E145=0,F145,IF(F145=0,E145,AVERAGE(E145,F145))) -> 42.9 | H145: =ROUND(IF(C145=D145,G145,0),2) -> 42.9
A146: 241.2 | B146: SEED: PEPPERS, Colored Bell | C146: 1M | D146: 1M | E146: 29.4 | F146: 65.5 | G146: 47.45 | H146: 47.45
A147: 241.4 | B147: SEED: PEPPERS, Jalapeno | C147: 1M | D147: 1M | E147: 27.3 | F147: 42 | G147: 34.65 | H147: 34.65
A148: 241.6 | B148: SEED: PEPPERS, Other Hot | C148: 1M | D148: 1M | E148: 25.75 | F148: 42.05 | G148: 33.9 | H148: 33.9
A149: 241.8 | B149: SEED: PEPPERS, Sweet Bell | C149: 1M | D149: 1M | E149: 32 | F149: 53.8 | G149: 42.9 | H149: 42.9
A150: 242 | B150: SEED: PEPPERS, Sweet Speciality | C150: 1M | D150: 1M | E150: 23.65 | F150: 48.5 | G150: 36.075 | H150: 36.08
A151: 243 | B151: SEED: POPCORN | C151: LBS | D151: LBS | E151: 6.35 | F151: 22 | G151: =IF(E151=0,F151,IF(F151=0,E151,AVERAGE(E151,F151))) -> 14.175 | H151: =ROUND(IF(C151=D151,G151,0),2) -> 14.18
A152: 245 | B152: SEED: POTATOES | C152: CWT | D152: CWT | E152: 15 | F152: 24 | G152: 19.5 | H152: 19.5
A153: 245.5 | B153: SEED: POTATOES Minitubers | C153: CWT | D153: CWT | E153: 20 | F153: 27 | G153: =IF(E153=0,F153,IF(F153=0,E153,AVERAGE(E153,F153))) -> 23.5 | H153: =ROUND(IF(C153=D153,G153,0),2) -> 23.5
A154: 247 | B154: SEED: Pumpkins | C154: LBS | D154: LBS | E154: 19.7 | F154: 99.25 | G154: 59.475 | H154: 59.48
A155: 248 | B155: SEED: Pumpkins | C155: 1M | D155: 1M | E155: 20.3 | F155: 47.05 | G155: 33.675 | H155: 33.68
A156: 249 | B156: SEED: Spinach | C156: 1M | D156: 1M | E156: 0.25 | F156: 0.41 | G156: 0.33 | H156: 0.33
A157: 251 | B157: SEED: SQUASH, Summer Other | C157: 1M | D157: 1M | E157: 20.6 | F157: 24 | G157: 22.3 | H157: 22.3
A158: 252 | B158: SEED: SQUASH, Summer Yellow | C158: 1M | D158: 1M | E158: 15.3 | F158: 38.45 | G158: 26.875 | H158: 26.88
A159: 253 | B159: SEED: SQUASH, Summer Zucchini | C159: 1M | D159: 1M | E159: 26.45 | F159: 36.55 | G159: 31.5 | H159: 31.5
A160: 260 | B160: SEED: Sweet Corn | C160: 1M | D160: 1M | E160: 7 | F160: 8.25 | G160: =IF(E160=0,F160,IF(F160=0,E160,AVERAGE(E160,F160))) -> 7.625 | H160: =ROUND(IF(C160=D160,G160,0),2) -> 7.63
A161: 261.1 | B161: SEED: Sweet Corn Bi-color se | C161: 1M | D161: 1M | E161: 7 | F161: 8.25 | G161: 7.625 | H161: 7.63
A162: 261.2 | B162: SEED: Sweet Corn Bi-color sh2 | C162: 1M | D162: 1M | E162: 3.95 | F162: 5.75 | G162: 4.85 | H162: 4.85
A163: 261.3 | B163: SEED: Sweet Corn Bi-color su | C163: LBS | D163: LBS | E163: 6.05 | F163: 6.25 | G163: 6.15 | H163: 6.15
A164: 262.1 | B164: SEED: Sweet Corn Synergistic Bi-color | C164: 1M | D164: 1M | E164: 3.7 | F164: 6.25 | G164: 4.975 | H164: 4.98
A165: 262.2 | B165: SEED: Sweet Corn Synergistic Yellow | C165: 1M | D165: 1M | E165: 3.25 | F165: 4.4 | G165: 3.825 | H165: 3.83
A166: 263.1 | B166: SEED: Sweet Corn white se | C166: 1M | D166: 1M | E166: 3.75 | F166: 4.5 | G166: 4.125 | H166: 4.13
A167: 263.2 | B167: SEED: Sweet Corn white sh2 | C167: 1M | D167: 1M | E167: 3.9 | F167: 5.5 | G167: 4.7 | H167: 4.7
A168: 263.3 | B168: SEED: Sweet Corn white su | C168: LBS | D168: LBS | E168: 6.1 | F168: 6.75 | G168: 6.425 | H168: 6.43
A169: 264.1 | B169: SEED: Sweet Corn Yellow se | C169: 1M | D169: 1M | E169: 6.2 | F169: 8 | G169: 7.1 | H169: 7.1
A170: 264.2 | B170: SEED: Sweet Corn Yellow sh2 | C170: 1M | D170: 1M | E170: 3.65 | F170: 5.3 | G170: 4.475 | H170: 4.48
A171: 264.3 | B171: SEED: Sweet Corn Yellow su | C171: LBS | D171: LBS | E171: 6.1 | F171: 8.3 | G171: 7.2 | H171: 7.2
A172: 271 | B172: SEED: TOMATO | C172: 1M | D172: 1M | E172: 20.9 | F172: 49.65 | G172: 35.275 | H172: 35.28
A173: 272 | B173: SEED: TOMATO Cherry & Grape | C173: 1M | D173: 1M | E173: 21.15 | F173: 75.7 | G173: 48.425 | H173: 48.43
A174: 273 | B174: SEED: TOMATO Roma | C174: 1M | D174: 1M | E174: 21.35 | F174: 53.75 | G174: 37.55 | H174: 37.55
A175: 273 | B175: SEED: TOMATO Hydroponics | C175: 1M | D175: 1M | E175: 325 | F175: 400 | G175: =IF(E175=0,F175,IF(F175=0,E175,AVERAGE(E175,F175))) -> 362.5 | H175: =ROUND(IF(C175=D175,G175,0),2) -> 362.5
A176: 275 | B176: SEED: Watermelons Pollinators | C176: 1M | D176: 1M | E176: 82 | F176: 114 | G176: 98 | H176: 98
A177: 276 | B177: SEED: Watermelons Seeded | C177: 1M | D177: 1M | E177: 30.45 | F177: 55.75 | G177: 43.1 | H177: 43.1
A178: 277 | B178: SEED: Watermelons Seeded | C178: LBS | D178: LBS | E178: 22 | F178: 50 | G178: 36 | H178: 36
A179: 278 | B179: SEED: Watermelons Seedless | C179: 1M | D179: 1M | E179: 149 | F179: 211 | G179: 180 | H179: 180
A180: 280 | B180: SEED Innoculant: Peas & Beans | C180: LBS | D180: LBS | E180: 6.99 | F180: 11.99 | G180: 9.49 | H180: 9.49
A182: VEGETABLE & FRUIT TRANSPLANTS
A183: 300 | B183: Plant Plugs: (Seed Not Included) | C183: 1M | D183: 1M | G183: =IF(E183=0,F183,IF(F183=0,E183,AVERAGE(E183,F183))) -> 0 | H183: =ROUND(IF(C183=D183,G183,0),2) -> 0
A184: 301 | B184: CROWNS: Asparagus | C184: 1M | D184: 1M | E184: 176 | F184: 200 | G184: =IF(E184=0,F184,IF(F184=0,E184,AVERAGE(E184,F184))) -> 188 | H184: =ROUND(IF(C184=D184,G184,0),2) -> 188
A185: 303 | B185: PLANTS: Broccoli - Fall Plantbed | C185: 1M | D185: 1M | E185: 53.47 | F185: 106.94 | G185: 80.205 | H185: 80.21
A186: 304 | B186: PLANTS: Broccoli - Spring Greenhouse | C186: 1M | D186: 1M | E186: 100.17 | F186: 159.6 | G186: 129.885 | H186: 129.89
A187: 305 | B187: PLANTS: Cabbage - Fall Plantbed | C187: 1M | D187: 1M | E187: 54.38 | F187: 108.76 | G187: 81.57 | H187: 81.57
A188: 306 | B188: PLANTS: Cabbage - Spring | C188: 1M | D188: 1M | E188: 101.08 | F188: 159.6 | G188: 130.34 | H188: 130.34
A189: 320 | B189: PLANTS: Cucumber - Slicing | C189: 1M | D189: 1M | E189: 138.45 | F189: 154.14 | G189: 146.295 | H189: 146.3
A190: 321 | B190: PLANTS: Cucumber - Pickling | C190: 1M | D190: 1M | E190: 138.45 | F190: 169.4 | G190: 153.925 | H190: 153.93
A191: 325 | B191: PLANTS: Eggplant | C191: 1M | D191: 1M | E191: 126.17 | F191: 245.28 | G191: 185.725 | H191: 185.73
A192: 331 | B192: PLANTS: Melons-W.Canteloupe | C192: 1M | D192: 1M | E192: 138.45 | F192: 192.85 | G192: 165.65 | H192: 165.65
A193: 332 | B193: PLANTS: Melons-Honeydew | C193: 1M | D193: 1M | E193: 138.45 | F193: 246.05 | G193: 192.25 | H193: 192.25
A194: 333 | B194: PLANTS: Melons-Speciality | C194: 1M | D194: 1M | E194: 138.45 | F194: 246.05 | G194: 192.25 | H194: 192.25
A195: 334 | B195: PLANTS: Melons-E.Canteloupe | C195: 1M | D195: 1M | E195: 138.45 | F195: 192.85 | G195: 165.65 | H195: 165.65
A196: 336 | B196: PLANTS: Green Onions | C196: 1M | D196: 1M | G196: 0 | H196: 0
A197: 341.6 | B197: PLANTS: Peppers Hot | C197: 1M | D197: 1M | E197: 126.17 | F197: 152.95 | G197: 139.56 | H197: 139.56
A198: 341.8 | B198: PLANTS: Peppers Sweet Bell | C198: 1M | D198: 1M | E198: 126.17 | F198: 226.1 | G198: 176.135 | H198: 176.14
A199: 342 | B199: PLANTS: Peppers Speciality | C199: 1M | D199: 1M | E199: 126.17 | F199: 279.3 | G199: 202.735 | H199: 202.74
A200: 351 | B200: PLANTS: SQUASH, Other Summer | C200: 1M | D200: 1M | E200: 131.3 | F200: 152.95 | G200: 142.125 | H200: 142.13
A201: 352 | B201: PLANTS: SQUASH, Yellow | C201: 1M | D201: 1M | E201: 131.3 | F201: 159.6 | G201: 145.45 | H201: 145.45
A202: 353 | B202: PLANTS: SQUASH, Zucchini | C202: 1M | D202: 1M | E202: 176.18 | F202: 192.85 | G202: 184.515 | H202: 184.52
... 91 more rows

Sheet Rates
A1: Market Prices (Income) and Rates & Costs (Expenses)
A2: NAME | E2: VALUE
A4: Interest Rate (%) | E4: 7.25
A5: Insurance Rate ($/1000) | E5: 8.5
A6: Equipment Tax Rates ($/1000) | C6: 0 | D6: 2.44 | E6: 0 | F6: Varies by County
A7: Diesel Price ($/gallon) | C7: 2.11 | D7: 2.4 | E7: 2.4 | F7: 0.452
A8: Gas price ($/gallon) | B8: No Ethanol | E8: 2.69
A9: LP Price ($/gallon) | C9: 1.27 | D9: 1.45 | E9: 1.4
A10: LUBRICATION COST (%) | E10: 15
A11: LABOR RATE ($/HOUR) | E11: 16 | F11: 11.46 | G11: 14.19
A12: FUEL CONSUMPTION MULTIPLIER (DIESEL) | E12: 0.048 | F12: 0.035 | G12: 0.054
A13: FUEL CONSUMPTION MULTIPLIER (GASOLINE) | E13: 0.06
A14: FUEL CONSUMPTION MULTIPLIER (LPG) | E14: 0.08
A15: MACHINERY LABOR MULTIPLIER | E15: 1.1
A16: UNALLOCATED LABOR HOURS MULTIPLIER | E16: 1.25
A17: INTEREST ON OPERATIONAL CAPITAL (%) | E17: 5.5
A18: GENERAL OVERHEAD RATE (%) | E18: 8
A19: HAULING ($/BU.) | E19: 0.25
G20: Crop Insurance
A21: Market Prices | C21: GMO | D21: Non-GMO | E21: Organic | F21: Other | G21: Sub Cost | H21: Price
A22: Barley (Feed) | B22: $/BU. | C22: 3.3 | G22: 3.83 | H22: 4.4
A23: Corn | B23: $/BU. | C23: 3.4 | G23: 17.48 | H23: 4.6
A24: Corn Silage | B24: $/Ton | C24: 45
A25: Grain Sorghum | B25: $/BU. | C25: 3.12 | G25: 9.53 | H25: 5.53
A26: Soybeans | B26: $/BU. | C26: 9 | G26: 13.11 | H26: 12.91
A27: Wheat | B27: $/BU. | C27: 4.5 | G27: 6.95 | H27: 6.72
A28: Small Grain Silage | B28: $/Ton | C28: 45
A29: Sorghum Silage | B29: $/Ton | C29: 45
A30: Straw | B30: $/Bale | C30: 5
A31: Alfalfa Hay | B31: $/Ton | C31: 180 | E31: =C31*1.5 -> 270
A32: Alfalfa Haylage | B32: $/Ton | C32: 100 | E32: 150
A33: Grass/Legume Hay | B33: $/Ton | C33: 125 | E33: 187.5
A34: Mixed Grass Hay | B34: $/Ton | C34: 100 | E34: 150
A35: Fescue Hay | B35: $/Ton | C35: 80 | E35: 120
A36: Other Hay | B36: $/Ton | C36: 60 | E36: 90
A37: Pasture, Forage | B37: $/Acre | C37: 24.5 | G37: 6.41 | H37: 55.05
A38: Cotton | B38: $/Lb | C38: 0.72 | G38: 15.84 | H38: 0.83
A39: Peanuts-Virginia | B39: $/Ton | C39: 480 | G39: 16.83 | H39: 532
A40: Peanuts-Runner | B40: $/Ton | C40: 420 | G40: 16.83 | H40: =0.266*2000 -> 532
A41: Flue-cured Tobacco | B41: $/Lb | C41: 1.8 | F41: 2 | G41: 186.71 | H41: 2.15
A42: Dark-fired Tobacco | B42: $/Lb | C42: 2.2 | F42: 2.48 | G42: 252.17 | H42: 2.1
A43: Burley Tobacco | B43: $/Lb | C43: 1.65 | F43: 1.8 | G43: 499.38 | H43: 1.8
A44: Oats | B44: $/BU. | G44: 7.47
A45: Canola | B45: $/cwt | C45: 17.4 | G45: 7.55 | H45: 22.9
A47: Distance between Rows | B47: Width Ft | C47: 4 | D47: 5 | E47: 6 | F47: 8
A48: VIF Mulch | B48: Linear Ft | C48: =138/2400 -> 0.0575
A49: TIF Mulch | B49: Linear Ft | C49: =((108/4000)+(98/2400))/2 -> 0.03391666667 | D49: =((81/2400)+(102/2400))/2 -> 0.038125 | E49: =((81/2000)+(98/2400))/2 -> 0.04066666667
A50: Floating Row Cover | B50: Sq. Yard | D50: =(836/(39*800/9))/2 -> 0.1205769231
A51: Drip Irrigation | B51: Linear Ft | C51: =151/6000 -> 0.02516666667 | D51: =198/6000 -> 0.033 | E51: =AVERAGE(C51:D51) -> 0.02908333333
A52: Drip Irrigation VC | B52: Acre/Inch | C52: 15.58 | D52: 15.56 | E52: 15.55 | F52: 15.53
A53: Drip Irrigation FC | B53: Acre | C53: 164.55 | D53: 160.2 | E53: 157.29 | F53: 153.66
A54: K-Line Starter Kit | B54: 5 Pods | C54: 890
A56: Net Wrap 64x6560 | B56: 243.95
A57: Net Wrap 48x6200 | B57: 178.95
